{"text_format":"1","workbook":"xlsx","n_sheets":9,"sheets":["Rammebetingelser","Teknologiliste","PrisFaktorer","SETUP","Sheet1","FAQ_TL","LHT-noter","OUTPUT-OLD","OUTPUT"],"not_rendered":{"charts":0,"images":4,"macros":1,"external_links":4,"defined_names":33,"comments":1,"pivot_tables":0},"unopened":[],"bounds":{"document_bytes":16777216,"sheet_cells":100000,"rows_first":2000,"rows_last":500,"rows_between":2000,"halvings":0,"cell_chars":16384,"cell_head_chars":4096},"cells_cut":0,"cells_raw":0,"read":"whole","date_system":"1900"}

{"sheet":"Rammebetingelser","index":0,"n_rows":19,"n_cols":16,"rows_kept":19,"cut":false,"hidden":false,"merged":[[14,1,14,15]]}
[null,"RB_1","RB_2","RB_3","RB_4","RB_5","RB_6","RB_7","RB_8","RB_9","RB_10","RB_11","RB_12","RB_13","RB_14","RB_15"]
[null,"Kapacitet (m3/t)","Geografisk placering","Lokalitet (land/by)","Årlig produktion","Løftehøjde","Geo-/hydrologiske vanskeligheder","Råvands-kvalitet"]
[1,"0 - 25",95,"Land","0 - 100.000","0 - 30","ingen","simpel"]
[2,"25 - 50",100,"By","100.000 - 250.000","30 - 60","moderat","moderat"]
[3,"50 - 100",110,"City","250.000 - 500.000","> 60","vanskelig","vanskelig"]
[4,"> 100",115,"Indre city","500.000 - 1 mio",null,"meget vanskelig","meget vanskelig"]
[5,null,null,null,"> 1 mio"]
[6]
[7]
[8]
[9]
[10]
[null,{"$f":"COUNTA(B3:B12)","v":4},{"$f":"COUNTA(C3:C12)","v":4},4,5,3,4,4,0,0,0,0,0,0,0,0]
[]
[null,"Tabellen er ændret! Tryk på knappen og opdatér TL-arket"]
[]
[]
[]
[null,null,false]

{"sheet":"Teknologiliste","index":1,"n_rows":409,"n_cols":74,"rows_kept":409,"cut":false,"hidden":false,"merged":[[2,31,2,32],[1,19,1,20],[1,21,1,22],[1,23,1,24],[1,25,1,26],[1,27,1,28],[2,21,2,22],[2,23,2,24],[2,25,2,26],[2,27,2,28],[2,29,2,30],[1,1,2,7],[1,8,2,12],[1,13,1,14],[1,15,1,16],[1,17,1,18],[2,13,2,14],[0,44,3,73],[2,39,2,40],[2,41,2,42],[2,15,2,16],[2,17,2,18],[2,33,2,34],[2,35,2,36],[2,37,2,38],[1,33,1,34],[1,35,1,36],[1,37,1,38],[1,39,1,40],[1,41,1,42],[1,29,1,30],[1,31,1,32],[2,19,2,20]]}
[null,null,null,null,null,null,null,null,null,null,null,null,"XXX",0,0,1,1,0,0,1,1,0,0,1,1,0,0,1,1,0,0,1,1,0,0,1,1,0,0,1,1,0,0,"XXX","Ikke ret i orange celler - de skal egentlig holdes skjult"]
[null,"Teknologier",null,null,null,null,null,null,"Basis-priser",null,null,null,null,"RB_1",null,"RB_2",null,"RB_3",null,"RB_4",null,"RB_5",null,"RB_6",null,"RB_7",null,"RB_8",null,"RB_9",null,"RB_10",null,"RB_11",null,"RB_12",null,"RB_13",null,"RB_14",null,"RB_15"]
[null,null,null,null,null,null,null,null,null,null,null,null,null,"Kapacitet (m3/t)",null,"Geografisk placering",null,"Lokalitet (land/by)",null,"Årlig produktion",null,"Løftehøjde",null,"Geo-/hydrologiske vanskeligheder",null,"Råvands-kvalitet"]
["Farve","Hovedfunktion","Sort","Teknologigruppe","Teknologi","Levetid (år)","Kilde_lev","Tek-niveau","Anlæg (kr)","Kilde_anl","Drift (kr/år)","Vlh (kr/år)","Enhed","min","max","min","max","min","max","min","max","min","max","min","max","min","max","min","max","min","max","min","max","min","max","min","max","min","max","min","max","min","max"]
[0,"Kildeplads",null,"Forundersøgelse","TEM Geoundersøgelse",1,"Erfaringstal","STD",32500,"Prishåndbogen",0,0,"dag",null,null,null,null,"Land","Land",null,null,null,null,null,null,null,null,null,null,null,null,null,null,null,null,null,null,null,null,null,null,null,null,null,0,0,0,0,0,0,0,0,0,0,0,0,0,0,0,0,0,0,0,0,0,0,0,0,0,0,0,0,0,0]
[0,"Kildeplads",null,"Forundersøgelse","MEP Geoundersøgelse",1,"Erfaringstal","STD",21500,"Prishåndbogen",0,0,"km",null,null,null,null,"Land","Land",null,null,null,null,null,null,null,null,null,null,null,null,null,null,null,null,null,null,null,null,null,null,null,null,null,0,0,0,0,0,0,0,0,0,0,0,0,0,0,0,0,0,0,0,0,0,0,0,0,0,0,0,0,0,0]
[0,"Kildeplads",null,"Forundersøgelse","MRS Sondering",1,"Erfaringstal","STOA",20000,"Erfaringstal",0,0,"stk",null,null,null,null,"Land","Land",null,null,null,null,null,null,null,null,null,null,null,null,null,null,null,null,null,null,null,null,null,null,null,null,null,0,0,0,0,0,0,0,0,0,0,0,0,0,0,0,0,0,0,0,0,0,0,0,0,0,0,0,0,0,0]
[0,"Kildeplads",null,"Forundersøgelse","Model IOL + påvirkning magasin",1,"Erfaringstal","BAT",20000,"Erfaringstal",0,0,"stk",null,null,null,null,null,null,null,null,null,null,null,null,null,null,null,null,null,null,null,null,null,null,null,null,null,null,null,null,null,null,null,0,0,0,0,0,0,0,0,0,0,0,0,0,0,0,0,0,0,0,0,0,0,0,0,0,0,0,0,0,0]
[0,"Kildeplads",null,"Forundersøgelse","Model IOL + alle påvirkning",1,"Erfaringstal","STOA",35000,"Erfaringstal",0,0,"stk",null,null,null,null,null,null,null,null,null,null,null,null,null,null,null,null,null,null,null,null,null,null,null,null,null,null,null,null,null,null,null,0,0,0,0,0,0,0,0,0,0,0,0,0,0,0,0,0,0,0,0,0,0,0,0,0,0,0,0,0,0]
[1,"Kildeplads",null,"Boreplads","Mobilisering, indretning, retablering",50,"Polka","STD",18642,"Prishåndbogen",0,0,"stk",null,null,null,null,null,null,null,null,null,null,null,null,null,null,null,null,null,null,null,null,null,null,null,null,null,null,null,null,null,null,null,0,0,0,0,0,0,0,0,0,0,0,0,0,0,0,0,0,0,0,0,0,0,0,0,0,0,0,0,0,0]
[1,"Kildeplads",null,"Boreplads","Køreplader til boreplads",50,"Erfaringstal","STD",207,"Prishåndbogen",0,0,"døgn",null,null,null,null,null,null,null,null,null,null,null,null,null,null,null,null,null,null,null,null,null,null,null,null,null,null,null,null,null,null,null,0,0,0,0,0,0,0,0,0,0,0,0,0,0,0,0,0,0,0,0,0,0,0,0,0,0,0,0,0,0]
[1,"Kildeplads",null,"Boreplads","Generator 7,5 kW",50,"Erfaringstal","STD",817,"Prishåndbogen",0,0,"døgn",null,null,null,null,null,null,null,null,null,null,null,null,null,null,null,null,null,null,null,null,null,null,null,null,null,null,null,null,null,null,null,0,0,0,0,0,0,0,0,0,0,0,0,0,0,0,0,0,0,0,0,0,0,0,0,0,0,0,0,0,0]
[1,"Kildeplads",null,"Boreplads","50 m slange m. spreder",50,"Erfaringstal","STD",79,"Prishåndbogen",0,0,"døgn",null,null,null,null,null,null,null,null,null,null,null,null,null,null,null,null,null,null,null,null,null,null,null,null,null,null,null,null,null,null,null,0,0,0,0,0,0,0,0,0,0,0,0,0,0,0,0,0,0,0,0,0,0,0,0,0,0,0,0,0,0]
[1,"Kildeplads",null,"Boreplads","50 m slange m. sandfang og beluftning",50,"Erfaringstal","STD",183,"Prishåndbogen",0,0,"døgn",null,null,null,null,null,null,null,null,null,null,null,null,null,null,null,null,null,null,null,null,null,null,null,null,null,null,null,null,null,null,null,0,0,0,0,0,0,0,0,0,0,0,0,0,0,0,0,0,0,0,0,0,0,0,0,0,0,0,0,0,0]
[0,"Kildeplads",null,"Boringsudførelse","Tørboring_Ø250mm_0-30m",50,"Erfaringstal","STD",1257,"Prishåndbogen",0,0,"lbm","0 - 25","0 - 25",null,null,null,null,null,null,null,null,null,null,null,null,null,null,null,null,null,null,null,null,null,null,null,null,null,null,null,null,null,0,0,0,0,0,0,0,0,0,0,0,0,0,0,0,0,0,0,0,0,0,0,0,0,0,0,0,0,0,0]
[0,"Kildeplads",null,"Boringsudførelse","Tørboring_Ø250mm_30-90m",50,"Erfaringstal","STD",1676,"Prishåndbogen",0,0,"lbm","0 - 25","0 - 25",null,null,null,null,null,null,null,null,null,null,null,null,null,null,null,null,null,null,null,null,null,null,null,null,null,null,null,null,null,0,0,0,0,0,0,0,0,0,0,0,0,0,0,0,0,0,0,0,0,0,0,0,0,0,0,0,0,0,0]
[0,"Kildeplads",null,"Boringsudførelse","Tørboring_Ø300mm_0-30m",50,"Erfaringstal","STD",1466,"Prishåndbogen",0,0,"lbm","0 - 25","25 - 50",null,null,null,null,null,null,null,null,null,null,null,null,null,null,null,null,null,null,null,null,null,null,null,null,null,null,null,null,null,0,0,0,0,0,0,0,0,0,0,0,0,0,0,0,0,0,0,0,0,0,0,0,0,0,0,0,0,0,0]
[0,"Kildeplads",null,"Boringsudførelse","Tørboring_Ø300mm_30-90m",50,"Erfaringstal","STD",2095,"Prishåndbogen",0,0,"lbm","0 - 25","25 - 50",null,null,null,null,null,null,null,null,null,null,null,null,null,null,null,null,null,null,null,null,null,null,null,null,null,null,null,null,null,0,0,0,0,0,0,0,0,0,0,0,0,0,0,0,0,0,0,0,0,0,0,0,0,0,0,0,0,0,0]
[0,"Kildeplads",null,"Boringsudførelse","Lufthæve_Ø450mm_0-50m",50,"Erfaringstal","STD",850,"Prishåndbogen",0,0,"lbm",null,null,null,null,null,null,null,null,null,null,null,null,null,null,null,null,null,null,null,null,null,null,null,null,null,null,null,null,null,null,null,0,0,0,0,0,0,0,0,0,0,0,0,0,0,0,0,0,0,0,0,0,0,0,0,0,0,0,0,0,0]
[0,"Kildeplads",null,"Boringsudførelse","Lufthæve_Ø450mm_50-250m",50,"Erfaringstal","STD",650,"Prishåndbogen",0,0,"lbm",null,null,null,null,null,null,null,null,null,null,null,null,null,null,null,null,null,null,null,null,null,null,null,null,null,null,null,null,null,null,null,0,0,0,0,0,0,0,0,0,0,0,0,0,0,0,0,0,0,0,0,0,0,0,0,0,0,0,0,0,0]
[0,"Kildeplads",null,"Boringsudførelse","Borehulslogging før filtersætning",50,"Erfaringstal","STD",15710,"Prishåndbogen",0,0,"stk",null,null,null,null,null,null,null,null,null,null,null,null,null,null,null,null,null,null,null,null,null,null,null,null,null,null,null,null,null,null,null,0,0,0,0,0,0,0,0,0,0,0,0,0,0,0,0,0,0,0,0,0,0,0,0,0,0,0,0,0,0]
[1,"Kildeplads",null,"Filter m/gruskastning","PVC_Ø160mm",50,"Erfaringstal","STD",995,"Prishåndbogen",0,0,"lbm","0 - 25","0 - 25",null,null,null,null,null,null,null,null,null,null,null,null,null,null,null,null,null,null,null,null,null,null,null,null,null,null,null,null,null,0,0,0,0,0,0,0,0,0,0,0,0,0,0,0,0,0,0,0,0,0,0,0,0,0,0,0,0,0,0]
[1,"Kildeplads",null,"Filter m/gruskastning","PVC_Ø200mm",50,"Erfaringstal","STD",1309,"Prishåndbogen",0,0,"lbm","0 - 25","25 - 50",null,null,null,null,null,null,null,null,null,null,null,null,null,null,null,null,null,null,null,null,null,null,null,null,null,null,null,null,null,0,0,0,0,0,0,0,0,0,0,0,0,0,0,0,0,0,0,0,0,0,0,0,0,0,0,0,0,0,0]
[1,"Kildeplads",null,"Filter m/gruskastning","PVC_Ø250mm",50,"Erfaringstal","STD",1530,"Prishåndbogen",0,0,"lbm",null,null,null,null,null,null,null,null,null,null,null,null,null,null,null,null,null,null,null,null,null,null,null,null,null,null,null,null,null,null,null,0,0,0,0,0,0,0,0,0,0,0,0,0,0,0,0,0,0,0,0,0,0,0,0,0,0,0,0,0,0]
[1,"Kildeplads",null,"Filter m/gruskastning","Viklet PVC_225mm",50,"Erfaringstal","BAT",3000,"Erfaringstal",0,0,"lbm","0 - 25","25 - 50",null,null,null,null,null,null,null,null,null,null,null,null,null,null,null,null,null,null,null,null,null,null,null,null,null,null,null,null,null,0,0,0,0,0,0,0,0,0,0,0,0,0,0,0,0,0,0,0,0,0,0,0,0,0,0,0,0,0,0]
[1,"Kildeplads",null,"Filter m/gruskastning","Rustfri stål (Johnson)_225mm",75,"Erfaringstal","STOA",4300,"Erfaringstal",0,0,"lbm",null,null,null,null,null,null,null,null,null,null,null,null,null,null,null,null,null,null,null,null,null,null,null,null,null,null,null,null,null,null,null,0,0,0,0,0,0,0,0,0,0,0,0,0,0,0,0,0,0,0,0,0,0,0,0,0,0,0,0,0,0]
[0,"Kildeplads",null,"Forerør m/udbygning","PVC_Ø160mm + bentonitpellets",50,"Erfaringstal","STD",550,"Prishåndbogen",0,0,"lbm","0 - 25","0 - 25",null,null,null,null,null,null,null,null,null,null,null,null,null,null,null,null,null,null,null,null,null,null,null,null,null,null,null,null,null,0,0,0,0,0,0,0,0,0,0,0,0,0,0,0,0,0,0,0,0,0,0,0,0,0,0,0,0,0,0]
[0,"Kildeplads",null,"Forerør m/udbygning","PVC_Ø200mm + bentonitpellets",50,"Erfaringstal","STD",812,"Prishåndbogen",0,0,"lbm","0 - 25","25 - 50",null,null,null,null,null,null,null,null,null,null,null,null,null,null,null,null,null,null,null,null,null,null,null,null,null,null,null,null,null,0,0,0,0,0,0,0,0,0,0,0,0,0,0,0,0,0,0,0,0,0,0,0,0,0,0,0,0,0,0]
[0,"Kildeplads",null,"Forerør m/udbygning","PVC_Ø250mm + bentonitpellets",50,"Erfaringstal","STD",1152,"Prishåndbogen",0,0,"lbm",null,null,null,null,null,null,null,null,null,null,null,null,null,null,null,null,null,null,null,null,null,null,null,null,null,null,null,null,null,null,null,0,0,0,0,0,0,0,0,0,0,0,0,0,0,0,0,0,0,0,0,0,0,0,0,0,0,0,0,0,0]
[0,"Kildeplads",null,"Forerør m/udbygning","PVC_Ø160mm + støbebentonit",50,"Erfaringstal","BAT",1100,"Prishåndbogen",0,0,"lbm","0 - 25","0 - 25",null,null,null,null,null,null,null,null,null,null,null,null,null,null,null,null,null,null,null,null,null,null,null,null,null,null,null,null,null,0,0,0,0,0,0,0,0,0,0,0,0,0,0,0,0,0,0,0,0,0,0,0,0,0,0,0,0,0,0]
[0,"Kildeplads",null,"Forerør m/udbygning","PVC_Ø200mm + støbebentonit",50,"Erfaringstal","BAT",1362,"Prishåndbogen",0,0,"lbm","0 - 25","25 - 50",null,null,null,null,null,null,null,null,null,null,null,null,null,null,null,null,null,null,null,null,null,null,null,null,null,null,null,null,null,0,0,0,0,0,0,0,0,0,0,0,0,0,0,0,0,0,0,0,0,0,0,0,0,0,0,0,0,0,0]
[0,"Kildeplads",null,"Forerør m/udbygning","PVC_Ø250mm + støbebentonit",50,"Erfaringstal","BAT",1702,"Prishåndbogen",0,0,"lbm"]
[1,"Kildeplads",null,"Tilbagestøbt forerør over åbent indtag","PVC_Ø200mm",50,"Erfaringstal","BAT",2500,"Erfaringstal",0,0,"lbm","0 - 25","25 - 50"]
[1,"Kildeplads",null,"Tilbagestøbt forerør over åbent indtag","PVC_Ø250mm",50,"Erfaringstal","BAT",3000,"Erfaringstal",0,0,"lbm"]
[0,"Kildeplads",null,"Boringsudvikling","Renpumpning",50,"Erfaringstal","STD",9949,"Prishåndbogen",0,1900,"stk"]
[0,"Kildeplads",null,"Boringsudvikling","Trinvis prøvepumpning",50,"Erfaringstal","STD",10000,"Erfaringstal",0,400,"stk"]
[0,"Kildeplads",null,"Boringsudvikling","Langtidsprøvepumpning 2 uger",50,"Erfaringstal","STD",20000,"Erfaringstal",0,0,"stk"]
[1,"Kildeplads",null,"Boringsudvikling/renovering","Tryksyring af kalkboring",50,"Erfaringstal","STD",55000,"Erfaringstal",0,1100,"stk"]
[1,"Kildeplads",null,"Boringsudvikling/renovering","Borehulslogging færdig boring, inkl. flow",50,"Erfaringstal","STD",20000,"Erfaringstal",0,400,"stk"]
[0,"Kildeplads",null,"Pumper","Pumpe 15 m3/t",15,"Polka","STD",35291,"Prishåndbogen",53228,1667,"stk","0 - 25","0 - 25",null,null,null,null,"0 - 100.000","0 - 100.000"]
[0,"Kildeplads",null,"Pumper","Pumpe 25 m3/t",15,"Polka","STD",46634,"Prishåndbogen",51206,833,"stk","0 - 25","0 - 25",null,null,null,null,"0 - 100.000","100.000 - 250.000"]
[0,"Kildeplads",null,"Pumper","Pumpe 45 m3/t",15,"Polka","STD",62550,"Prishåndbogen",50518,550,"stk","0 - 25","25 - 50",null,null,null,null,"0 - 100.000","250.000 - 500.000"]
[0,"Kildeplads",null,"Pumper","Pumpe 60 m3/t",15,"Polka","STD",85000,"Prishåndbogen",50302,417,"stk","0 - 25","50 - 100",null,null,null,null,"0 - 100.000","250.000 - 500.000"]
[1,"Kildeplads",null,"Stigrør","PE_Ø63mm",15,"Polka","STD",640,"Prishåndbogen",0,7,"lbm","0 - 25","0 - 25"]
[1,"Kildeplads",null,"Stigrør","PE_Ø90mm",15,"Polka","STD",940,"Prishåndbogen",0,7,"lbm","0 - 25","25 - 50"]
[1,"Kildeplads",null,"Stigrør","Rustfrit stål_Ø100mm",15,"Polka","BAT",2307,"Prishåndbogen",0,7,"lbm","0 - 25","50 - 100"]
[0,"Kildeplads",null,"VLT-styring af dykpumpe","for 3,0 kW motor",10,"Polka","BAT",29700,"Prishåndbogen",1400,0,"stk","0 - 25","25 - 50",null,null,null,null,null,null,"0 - 30","30 - 60"]
[0,"Kildeplads",null,"VLT-styring af dykpumpe","for 5,5 kW motor",10,"Polka","BAT",31680,"Prishåndbogen",1400,0,"stk","0 - 25","25 - 50"]
[0,"Kildeplads",null,"VLT-styring af dykpumpe","for 7,5 kW motor",10,"Polka","BAT",35180,"Prishåndbogen",1400,0,"stk"]
[0,"Kildeplads",null,"VLT-styring af dykpumpe","for 11,0 kW motor",10,"Polka","BAT",41870,"Prishåndbogen",1400,0,"stk"]
[1,"Kildeplads",null,"Målere og transmittere","DN65 flowmåler",10,"Polka","STD",20210,"Prishåndbogen",2100,0,"stk","0 - 25","0 - 25"]
[1,"Kildeplads",null,"Målere og transmittere","DN100 flowmåler",10,"Polka","STD",20660,"Prishåndbogen",2100,0,"stk"]
[1,"Kildeplads",null,"Målere og transmittere","Niveautransmitter",10,"Polka","STD",4950,"Prishåndbogen",2100,0,"stk"]
[1,"Kildeplads",null,"Målere og transmittere","Tryktransmitter 0-10 bar",10,"Polka","STD",4450,"Prishåndbogen",2100,0,"stk"]
[0,"Kildeplads",null,"Råvandsstation","Terrænliggende råvandsstation lille",30,"Polka","STD",33624,"Prishåndbogen",0,0,"stk"]
[0,"Kildeplads",null,"Råvandsstation","Terrænliggende råvandsstation stor",30,"Polka","BAT",42699,"Prishåndbogen",0,0,"stk"]
[0,"Kildeplads",null,"Råvandsstation","Adgangsalarm",10,"Polka","STD",4050,"Prishåndbogen",0,0,"stk"]
[1,"Kildeplads",null,"Indhegning","Hegn, 2 m højt",15,"Polka","STD",665,"Prishåndbogen",0,0,"lbm"]
[1,"Kildeplads",null,"Indhegning","Låge",15,"Polka","STD",16610,"Prishåndbogen",0,0,"stk"]
[0,"Kildeplads",null,"Råvandsledning","Ø63mm PN10, Lev og læg",90,"Erfaringstal","STD",104,"Prishåndbogen",0,5,"lbm","0 - 25","25 - 50"]
[0,"Kildeplads",null,"Råvandsledning","Ø75mm PN10, Lev og læg",90,"Erfaringstal","STD",125,"Prishåndbogen",0,5,"lbm","0 - 25","25 - 50"]
[0,"Kildeplads",null,"Råvandsledning","Ø90mm PN10, Lev og læg",90,"Erfaringstal","STD",162,"Prishåndbogen",0,5,"lbm","0 - 25","25 - 50"]
[0,"Kildeplads",null,"Råvandsledning","Ø110mm PN10, Lev og læg",90,"Erfaringstal","STD",204,"Prishåndbogen",0,5,"lbm","0 - 25","25 - 50"]
[0,"Kildeplads",null,"Råvandsledning","Ø160mm PN10, Lev og læg",90,"Erfaringstal","STD",334,"Prishåndbogen",0,5,"lbm","25 - 50","> 100"]
[0,"Kildeplads",null,"Råvandsledning","Ø200mm PN10, Lev og læg",90,"Erfaringstal","STD",538,"Prishåndbogen",0,5,"lbm","25 - 50","> 100"]
[0,"Kildeplads",null,"Råvandsledning","Ø225mm PN10, Lev og læg",90,"Erfaringstal","STD",639,"Prishåndbogen",0,5,"lbm","25 - 50","> 100"]
[0,"Kildeplads",null,"Råvandsledning","Ø250mm PN10, Lev og læg",90,"Erfaringstal","STD",788,"Prishåndbogen",0,5,"lbm","25 - 50","> 100"]
[0,"Kildeplads",null,"Råvandsledning","Ø315mm PN10, Lev og læg",90,"Erfaringstal","STD",1222,"Prishåndbogen",0,5,"lbm","25 - 50","> 100"]
[0,"Kildeplads",null,"Råvandsledning","Ø63mm PN16, Lev og læg",110,"Erfaringstal","STD",132.08000000000001,"Erfaringstal",0,5,"lbm","0 - 25","25 - 50"]
[0,"Kildeplads",null,"Råvandsledning","Ø75mm PN16, Lev og læg",110,"Erfaringstal","STD",154.44711538461539,"Erfaringstal",0,5,"lbm","0 - 25","25 - 50"]
[0,"Kildeplads",null,"Råvandsledning","Ø90mm PN16, Lev og læg",110,"Erfaringstal","STD",205.23648648648648,"Erfaringstal",0,5,"lbm","0 - 25","25 - 50"]
[0,"Kildeplads",null,"Råvandsledning","Ø110mm PN16, Lev og læg",110,"Erfaringstal","STD",249.13274336283183,"Erfaringstal",0,5,"lbm","0 - 25","25 - 50"]
[0,"Kildeplads",null,"Råvandsledning","Ø160mm PN16, Lev og læg",110,"Erfaringstal","STD",439.79185520361989,"Erfaringstal",0,5,"lbm","25 - 50","> 100"]
[0,"Kildeplads",null,"Råvandsledning","Ø200mm PN16, Lev og læg",110,"Erfaringstal","STD",696.77936962750721,"Erfaringstal",0,5,"lbm","25 - 50","> 100"]
[0,"Kildeplads",null,"Råvandsledning","Ø225mm PN16, Lev og læg",110,"Erfaringstal","STD",815.08,"Erfaringstal",0,5,"lbm","25 - 50","> 100"]
[0,"Kildeplads",null,"Råvandsledning","Ø250mm PN16, Lev og læg",110,"Erfaringstal","STD",997.16216216216208,"Erfaringstal",0,5,"lbm","25 - 50","> 100"]
[0,"Kildeplads",null,"Råvandsledning","Ø315mm PN16, Lev og læg",110,"Erfaringstal","STD",1557.5366972477063,"Erfaringstal",0,5,"lbm","25 - 50","> 100"]
[1,"Kildeplads",null,"Sløjfning","Sløjfning af boring",1,"Erfaringstal","STD",408.45,"Prishåndbogen",0,0,"lbm"]
[1,"Kildeplads",null,"Sløjfning","Sløjfning af brønd",1,"Erfaringstal","STD",1162.51,"Prishåndbogen",0,0,"lbm"]
[1,"Kildeplads",null,"Sløjfning","Sløjfning af boring i brønd",1,"Erfaringstal","STD",706.93,"Prishåndbogen",0,0,"lbm"]
[1,"Kildeplads",null,"Sløjfning","Sløjfning af boring ved overboring",1,"Erfaringstal","BAT",10000,"Erfaringstal",0,0,"lbm"]
[0,"Vandværk",null,"Beluftning","Pladebelufter",25,"Erfaringstal","BAT",13700,"Prishåndbogen",642,24,"m3",null,null,null,null,null,null,null,null,null,null,null,null,"simpel","moderat"]
[0,"Vandværk",null,"Beluftning","Iltningsspor ",25,"Erfaringstal","BAT",9100,"Prishåndbogen",458,96,"m3",null,null,null,null,null,null,null,null,null,null,null,null,"simpel","vanskelig"]
[0,"Vandværk",null,"Beluftning","Ren ilt ",25,"Polka","STOA",6700,"Prishåndbogen",693,0,"m3",null,null,null,null,null,null,"500.000 - 1 mio","> 1 mio",null,null,null,null,"vanskelig","meget vanskelig"]
[0,"Vandværk",null,"Beluftning","Iltningsbeholder",25,"Erfaringstal","STD",7000,"Prishåndbogen",224,0,"m3",null,null,null,null,null,null,null,null,null,null,null,null,"simpel","moderat"]
[1,"Vandværk",null,"Filtrering","Åbne filtre",50,"Polka","STD",8073.2,"Prishåndbogen",698,48,"m3",null,null,null,null,null,null,"0 - 100.000","250.000 - 500.000",null,null,null,null,"simpel","vanskelig"]
[1,"Vandværk",null,"Filtrering","Trykfilter 10 m3/t",25,"Polka","BAT",276422,"Prishåndbogen",3275,1200,"stk","0 - 25","0 - 25",null,null,null,null,"0 - 100.000","0 - 100.000"]
[1,"Vandværk",null,"Filtrering","Trykfilter 20 m3/t",25,"Polka","BAT",319971,"Prishåndbogen",3475,1680,"stk","0 - 25","0 - 25",null,null,null,null,"0 - 100.000","100.000 - 250.000"]
[1,"Vandværk",null,"Filtrering","Trykfilter 30 m3/t",25,"Polka","BAT",440708,"Prishåndbogen",3775,2200,"stk","0 - 25","25 - 50",null,null,null,null,"0 - 100.000","250.000 - 500.000"]
[1,"Vandværk",null,"Filtrering","Magnomasse i trykfilter",40,"Erfaringstal","STD",5370,"Prishåndbogen",133,4,"m3","0 - 25","> 100",null,null,null,null,"0 - 100.000","> 1 mio"]
[0,"Vandværk",null,"Skylleanlæg","Returskylningsanlæg ",25,"Polka","STD",16142,"Prishåndbogen",32730,4500,"anlæg","0 - 25","50 - 100",null,null,null,null,"0 - 100.000","500.000 - 1 mio"]
[0,"Vandværk",null,"Skylleanlæg","Skyllevandsbeholder 10 m3",50,"Polka","STD",10648,"Prishåndbogen",700,2625,"stk"]
[0,"Vandværk",null,"Skylleanlæg","Bundfældningsbassin 30-80 m3",50,"Polka","STD",4200,"Prishåndbogen",60,136,"m3","0 - 25","50 - 100"]
[0,"Vandværk",null,"Skylleanlæg","Bundfældningsbassin 80-120 m3",50,"Polka","STD",4000,"Prishåndbogen",42,125,"m3","25 - 50","> 100"]
[0,"Vandværk",null,"Skylleanlæg","Ventilbrønd Ø1250",50,"Polka","STD",27571,"Prishåndbogen",2250,1000,"stk"]
[1,"Vandværk",null,"Rentvandsbeholder","Rentvandsbeholder (in-situ støbt)",50,"Polka","BAT",4399,"Prishåndbogen",32,40,"m3"]
[1,"Vandværk",null,"Rentvandsbeholder","Rentvandsbeholder (in-situ støbt uden dæk)",50,"Polka","BAT",2304,"Prishåndbogen",19,51,"m3"]
[1,"Vandværk",null,"Rentvandsbeholder","Rentvandsbeholder (elementer)",50,"Polka","STD",3100,"Prishåndbogen",19,61,"m3"]
[1,"Vandværk",null,"Rentvandsbeholder","Rustfri, stående i bygning",50,"Polka","STOA",4189,"Prishåndbogen",9,7,"m3"]
[1,"Vandværk",null,"Rentvandsbeholder","Rustfri, liggende i bygning",50,"Polka","STOA",4500,"Erfaringstal",9,5,"m3"]
[0,"Vandværk",null,"Udvidet vandbehandling","Adsorptivt granulat ",30,"Erfaringstal","BAT",5500,"Erfaringstal",252,20,"m3",null,null,null,null,null,null,null,null,null,null,null,null,"moderat","meget vanskelig"]
[0,"Vandværk",null,"Udvidet vandbehandling","Elektrolyse ",40,"Erfaringstal","BAT",129500,"Erfaringstal",515,800,"m3","0 - 25","25 - 50",null,null,null,null,null,null,null,null,null,null,"moderat","meget vanskelig"]
[0,"Vandværk",null,"Udvidet vandbehandling","Ionbytning ",40,"Erfaringstal","BAT",50500,"Erfaringstal",5857,100,"m3",null,null,null,null,null,null,null,null,null,null,null,null,"moderat","meget vanskelig"]
[0,"Vandværk",null,"Udvidet vandbehandling","Kemikaliedosering",20,"Erfaringstal","BAT",66393,"Prishåndbogen",785,0,"m3",null,null,null,null,null,null,null,null,null,null,null,null,"moderat","meget vanskelig"]
[0,"Vandværk",null,"Udvidet vandbehandling","Kemisk oxidation",30,"Erfaringstal","BAT",6700,"Erfaringstal",770,33,"m3",null,null,null,null,null,null,null,null,null,null,null,null,"moderat","meget vanskelig"]
[0,"Vandværk",null,"Udvidet vandbehandling","Kulfiltrering",25,"Erfaringstal","STD",8000,"Erfaringstal",1616,970,"m3",null,null,null,null,null,null,null,null,null,null,null,null,"moderat","meget vanskelig"]
[0,"Vandværk",null,"Udvidet vandbehandling","Membranfiltrering ",20,"Erfaringstal","STOA",172000,"Erfaringstal",7484,0,"m3","25 - 50","> 100",null,null,null,null,null,null,null,null,null,null,"vanskelig","meget vanskelig"]
[0,"Vandværk",null,"Udvidet vandbehandling","Pellet softening",40,"Erfaringstal","BAT",72600,"Erfaringstal",7468,50,"m3","50 - 100","> 100",null,null,null,null,"250.000 - 500.000","> 1 mio",null,null,null,null,"vanskelig","meget vanskelig"]
[0,"Vandværk",null,"Udvidet vandbehandling","Stripning",30,"Erfaringstal","BAT",7000,"Erfaringstal",406,0,"m3",null,null,null,null,null,null,null,null,null,null,null,null,"vanskelig","meget vanskelig"]
[1,"Vandværk",null,"Maskin / El","Forsyning ",70,"Erfaringstal","STD",225,"Erfaringstal",7,0,"m3"]
[1,"Vandværk",null,"Maskin / El","Hovedtavle ",40,"Erfaringstal","STD",500,"Erfaringstal",28,24,"m3"]
[1,"Vandværk",null,"Maskin / El","Maskintavle ",40,"Erfaringstal","STD",2400,"Erfaringstal",52,42,"m3"]
[1,"Vandværk",null,"Maskin / El","Føringsveje og kabling ",50,"Erfaringstal","STD",4300,"Erfaringstal",66,0,"m3"]
[1,"Vandværk",null,"Maskin / El","Nødstrømsaggregat 12kW",40,"Erfaringstal","STD",113237,"Erfaringstal",19900,1500,"anlæg",null,null,null,null,null,null,"500.000 - 1 mio","> 1 mio"]
[1,"Vandværk",null,"Maskin / El","Nødstrømsaggregat 16kW",40,"Erfaringstal","STD",125136,"Erfaringstal",21900,1500,"anlæg",null,null,null,null,null,null,"500.000 - 1 mio","> 1 mio"]
[1,"Vandværk",null,"Maskin / El","Nødstrømsaggregat 24kW",40,"Erfaringstal","STD",135017,"Erfaringstal",25900,1500,"anlæg",null,null,null,null,null,null,"500.000 - 1 mio","> 1 mio"]
[0,"Vandværk",null,"Styring","Hovedcentral ",40,"Erfaringstal","BAT",5150,"Erfaringstal",152,75,"m3"]
[0,"Vandværk",null,"Styring","Undertavler ",40,"Erfaringstal","BAT",1700,"Erfaringstal",152,0,"m3"]
[0,"Vandværk",null,"Styring","Føringsveje og kabling ",50,"Erfaringstal","BAT",6300,"Erfaringstal",66,0,"m3"]
[1,"Vandværk",null,"Bygning","Let bygning",75,"Polka","STD",13000,"Erfaringstal",153,22,"m2"]
[1,"Vandværk",null,"Bygning","Tung bygning",75,"Polka","BAT",15500,"Erfaringstal",138,22,"m2"]
[1,"Vandværk",null,"Bygning","Affugtning 90 m3/t (luft)",15,"Erfaringstal","BAT",33636,"Prishåndbogen",43300,533,"anlæg"]
[1,"Vandværk",null,"Bygning","Affugtning 120 m3/t (luft)",15,"Erfaringstal","BAT",36356,"Prishåndbogen",59800,667,"anlæg"]
[1,"Vandværk",null,"Bygning","Affugtning 180 m3/t (luft)",15,"Erfaringstal","BAT",40428,"Prishåndbogen",80300,800,"anlæg"]
[0,"Distribution",null,"Rentvandsbeholder","Rentvandsbeholder (in-situ støbt)",50,"Polka","BAT",4399,"Prishåndbogen",32,40,"m3"]
[0,"Distribution",null,"Rentvandsbeholder","Rentvandsbeholder (in-situ støbt uden dæk)",50,"Polka","BAT",2304,"Prishåndbogen",19,51,"m3"]
[0,"Distribution",null,"Rentvandsbeholder","Rentvandsbeholder (elementer)",50,"Polka","STD",3100,"Prishåndbogen",19,61,"m3"]
[0,"Distribution",null,"Rentvandsbeholder","Rustfri, stående i bygning",50,"Polka","STOA",4189,"Prishåndbogen",9,7,"m3"]
[0,"Distribution",null,"Rentvandsbeholder","Rustfri, liggende i bygning",50,"Polka","STOA",4500,"Erfaringstal",9,5,"m3"]
[1,"Distribution",null,"Udpumpningsanlæg","Pumpe, 3m3/t, 35mvs, 0,75kW",15,"Erfaringstal","STD",21973,"Prishåndbogen",15950,267,"stk","0 - 25","25 - 50",null,null,null,null,null,null,"0 - 30","30 - 60"]
[1,"Distribution",null,"Udpumpningsanlæg","Pumpe, 6m3/t, 35mvs, 1,50kW",15,"Erfaringstal","STD",27898,"Prishåndbogen",27400,333,"stk","0 - 25","25 - 50",null,null,null,null,null,null,"0 - 30","30 - 60"]
[1,"Distribution",null,"Udpumpningsanlæg","Pumpe, 10m3/t, 35mvs, 2,20kW",15,"Erfaringstal","STD",31232,"Prishåndbogen",38120,400,"stk","0 - 25","25 - 50",null,null,null,null,null,null,"0 - 30","30 - 60"]
[1,"Distribution",null,"Udpumpningsanlæg","Pumpe, 20m3/t, 35mvs, 4,00kW",15,"Erfaringstal","STD",42747,"Prishåndbogen",64900,467,"stk","0 - 25","25 - 50",null,null,null,null,null,null,"0 - 30","30 - 60"]
[1,"Distribution",null,"Udpumpningsanlæg","Pumpe, 30m3/t, 35mvs, 5,50kW",15,"Erfaringstal","STD",48173,"Prishåndbogen",87800,533,"stk","25 - 50","25 - 50",null,null,null,null,null,null,"0 - 30","30 - 60"]
[0,"Distribution",null,"Frekvensomformer ","For 2 pumper á 2,20kW  ",15,"Erfaringstal","STD",54563,"Erfaringstal",1400,4000,"stk","0 - 25","0 - 25"]
[0,"Distribution",null,"Frekvensomformer ","For 2 pumper á 4,00kW  ",15,"Erfaringstal","STD",57226,"Erfaringstal",1400,4000,"stk","0 - 25","25 - 50"]
[0,"Distribution",null,"Frekvensomformer ","For 2 pumper á 5,50kW  ",15,"Erfaringstal","STD",60514,"Erfaringstal",1400,4000,"stk","0 - 25","25 - 50"]
[1,"Distribution",null,"Flowmåler","Magnetisk induktiv 20m3/t",10,"Erfaringstal","BAT",42823,"Prishåndbogen",0,0,"stk","0 - 25","0 - 25"]
[1,"Distribution",null,"Flowmåler","Magnetisk induktiv 50m3/t",10,"Erfaringstal","BAT",66358,"Prishåndbogen",0,0,"stk","0 - 25","25 - 50"]
[0,"Distribution",null,"Trykforøgeranlæg ","Overbygning",50,"Polka","STD",136826,"Prishåndbogen",0,0,"stk"]
[0,"Distribution",null,"Trykforøgeranlæg ","Trykforøgerstation 5-10m3/t",15,"Erfaringstal","STD",104633,"Prishåndbogen",38500,533,"stk","0 - 25","0 - 25"]
[0,"Distribution",null,"Trykforøgeranlæg ","Trykforøgerstation 12-20m3/t",15,"Erfaringstal","STD",130389,"Prishåndbogen",43500,667,"stk","0 - 25","0 - 25"]
[1,"Distribution",null,"UV-anlæg","10m3/t",10,"Erfaringstal","STD",154497,"Prishåndbogen",14304,6180,"stk","0 - 25","0 - 25",null,null,null,null,null,null,null,null,null,null,"moderat","meget vanskelig"]
[1,"Distribution",null,"UV-anlæg","20m3/t",10,"Erfaringstal","STD",186577,"Prishåndbogen",25108,6180,"stk","0 - 25","0 - 25",null,null,null,null,null,null,null,null,null,null,"moderat","meget vanskelig"]
[1,"Distribution",null,"UV-anlæg","40m3/t",10,"Erfaringstal","STD",217388,"Prishåndbogen",46716,6180,"stk","0 - 25","25 - 50",null,null,null,null,null,null,null,null,null,null,"moderat","meget vanskelig"]
[0,"Distribution",null,"Sektionsbrønd","Ø1600mm PE m. alu. dæksel",50,"Polka","BAT",200000,"Erfaringstal",1700,167,"stk"]
[0,"Distribution",null,"Sektionsbrønd","Ø2000mm PE m. alu. Dæksel",50,"Polka","BAT",250000,"Erfaringstal",1700,167,"stk"]
[1,"Distribution",null,"Ledningsgrav","ø50-ø110mm rør",110,"Erfaringstal","STD",513,"Prishåndbogen",0,0,"lbm","0 - 25","50 - 100"]
[1,"Distribution",null,"Ledningsgrav","ø160-ø225mm rør",110,"Erfaringstal","STD",521,"Prishåndbogen",0,0,"lbm","25 - 50","> 100"]
[1,"Distribution",null,"Ledningsgrav","ø250-ø315mm rør",110,"Erfaringstal","STD",628,"Prishåndbogen",0,0,"lbm","25 - 50","> 100"]
[0,"Distribution",null,"Styret underboring ","ø32-40mm (Raket)",90,"Erfaringstal","STD",803,"Prishåndbogen",0,0,"lbm","0 - 25","0 - 25"]
[0,"Distribution",null,"Styret underboring ","ø50-75mm (Raket)",90,"Erfaringstal","STD",1103,"Prishåndbogen",0,0,"lbm","0 - 25","0 - 25"]
[0,"Distribution",null,"Styret underboring ","Skylleboring Ø90mm",90,"Erfaringstal","STD",25612,"Prishåndbogen",0,0,"stk","0 - 25","50 - 100"]
[0,"Distribution",null,"Styret underboring ","Skylleboring Ø110mm",90,"Erfaringstal","STD",26566,"Prishåndbogen",0,0,"stk","0 - 25","50 - 100"]
[0,"Distribution",null,"Styret underboring ","Skylleboring Ø160mm",90,"Erfaringstal","STD",30072,"Prishåndbogen",0,0,"stk","25 - 50","> 100"]
[0,"Distribution",null,"Styret underboring ","Skylleboring Ø200mm",90,"Erfaringstal","STD",42112,"Prishåndbogen",0,0,"stk","25 - 50","> 100"]
[0,"Distribution",null,"Styret underboring ","Skylleboring Ø225mm",90,"Erfaringstal","STD",49500,"Prishåndbogen",0,0,"stk","25 - 50","> 100"]
[0,"Distribution",null,"Styret underboring ","Skylleboring Ø250mm",90,"Erfaringstal","STD",52822,"Prishåndbogen",0,0,"stk","25 - 50","> 100"]
[0,"Distribution",null,"Styret underboring ","Skylleboring Ø315mm",90,"Erfaringstal","STD",62743,"Prishåndbogen",0,0,"stk","25 - 50","> 100"]
[0,"Distribution",null,"Styret underboring ","Krydsning kørebane Ø90mm",90,"Erfaringstal","STD",32407,"Prishåndbogen",0,0,"stk","0 - 25","50 - 100"]
[0,"Distribution",null,"Styret underboring ","Krydsning kørebane Ø110mm",90,"Erfaringstal","STD",35610,"Prishåndbogen",0,0,"stk","0 - 25","50 - 100"]
[0,"Distribution",null,"Styret underboring ","Krydsning kørebane Ø160mm",90,"Erfaringstal","STD",63886,"Prishåndbogen",0,0,"stk","25 - 50","> 100"]
[0,"Distribution",null,"Styret underboring ","Krydsning kørebane Ø200mm",90,"Erfaringstal","STD",79811,"Prishåndbogen",0,0,"stk","25 - 50","> 100"]
[0,"Distribution",null,"Styret underboring ","Krydsning kørebane Ø225mm",90,"Erfaringstal","STD",83957,"Prishåndbogen",0,0,"stk","25 - 50","> 100"]
[0,"Distribution",null,"Styret underboring ","Krydsning kørebane Ø250mm",90,"Erfaringstal","STD",97707,"Prishåndbogen",0,0,"stk","25 - 50","> 100"]
[0,"Distribution",null,"Styret underboring ","Krydsning kørebane Ø315mm",90,"Erfaringstal","STD",125640,"Prishåndbogen",0,0,"stk","25 - 50","> 100"]
[0,"Distribution",null,"Styret underboring ","Krydsning jernbane Ø90mm",90,"Erfaringstal","STD",165929,"Prishåndbogen",0,0,"stk","0 - 25","50 - 100"]
[0,"Distribution",null,"Styret underboring ","Krydsning jernbane Ø110mm",90,"Erfaringstal","STD",171825,"Prishåndbogen",0,0,"stk","0 - 25","50 - 100"]
[0,"Distribution",null,"Styret underboring ","Krydsning jernbane Ø160mm",90,"Erfaringstal","STD",183111,"Prishåndbogen",0,0,"stk","25 - 50","> 100"]
[0,"Distribution",null,"Styret underboring ","Krydsning jernbane Ø200mm",90,"Erfaringstal","STD",202633,"Prishåndbogen",0,0,"stk","25 - 50","> 100"]
[0,"Distribution",null,"Styret underboring ","Krydsning jernbane Ø225mm",90,"Erfaringstal","STD",208999,"Prishåndbogen",0,0,"stk","25 - 50","> 100"]
[0,"Distribution",null,"Styret underboring ","Krydsning jernbane Ø250mm",90,"Erfaringstal","STD",226370,"Prishåndbogen",0,0,"stk","25 - 50","> 100"]
[0,"Distribution",null,"Styret underboring ","Krydsning jernbane Ø315mm",90,"Erfaringstal","STD",258641,"Prishåndbogen",0,0,"stk","25 - 50","> 100"]
[1,"Distribution",null,"Transmissionsledninger","ø250mm PN10, Lev og læg",90,"Erfaringstal","STD",788,"Erfaringstal",0,0,"lbm","25 - 50","> 100"]
[1,"Distribution",null,"Transmissionsledninger","ø315mm PN10, Lev og læg",90,"Erfaringstal","STD",1222,"Erfaringstal",0,0,"lbm","25 - 50","> 100"]
[1,"Distribution",null,"Transmissionsledninger","ø250mm PN16, Lev og læg",110,"Erfaringstal","STD",997,"Erfaringstal",0,0,"lbm","25 - 50","> 100"]
[1,"Distribution",null,"Transmissionsledninger","ø315mm PN16, Lev og læg",110,"Erfaringstal","STD",1558,"Erfaringstal",0,0,"lbm","25 - 50","> 100"]
[1,"Distribution",null,"Transmissionsledninger","ø250mm, diff. tæt PN10, Lev og læg",90,"Erfaringstal","STD",895.5,"Erfaringstal",0,0,"lbm","25 - 50","> 100"]
[1,"Distribution",null,"Transmissionsledninger","ø315mm, diff. tæt PN10, Lev og læg",90,"Erfaringstal","STD",1404,"Erfaringstal",0,0,"lbm","25 - 50","> 100"]
[1,"Distribution",null,"Transmissionsledninger","ø250mm, diff. tæt PN16, Lev og læg",110,"Erfaringstal","STD",1286,"Erfaringstal",0,0,"lbm","25 - 50","> 100"]
[1,"Distribution",null,"Transmissionsledninger","ø315mm, diff. tæt PN16, Lev og læg",110,"Erfaringstal","STD",1976.5,"Erfaringstal",0,0,"lbm","25 - 50","> 100"]
[0,"Distribution",null,"Distributionledninger","Ø160mm PN10, Lev og læg",90,"Erfaringstal","STD",334,"Erfaringstal",0,0,"lbm","25 - 50","> 100"]
[0,"Distribution",null,"Distributionledninger","Ø200mm PN10, Lev og læg",90,"Erfaringstal","STD",538,"Erfaringstal",0,0,"lbm","25 - 50","> 100"]
[0,"Distribution",null,"Distributionledninger","Ø225mm PN10, Lev og læg",90,"Erfaringstal","STD",639,"Erfaringstal",0,0,"lbm","25 - 50","> 100"]
[0,"Distribution",null,"Distributionledninger","Ø160mm PN16, Lev og læg",110,"Erfaringstal","STD",440,"Erfaringstal",0,0,"lbm","25 - 50","> 100"]
[0,"Distribution",null,"Distributionledninger","Ø200mm PN16, Lev og læg",110,"Erfaringstal","STD",697,"Erfaringstal",0,0,"lbm","25 - 50","> 100"]
[0,"Distribution",null,"Distributionledninger","Ø225mm PN16, Lev og læg",110,"Erfaringstal","STD",815,"Erfaringstal",0,0,"lbm","25 - 50","> 100"]
[0,"Distribution",null,"Distributionledninger","Ø160mm, diff. tæt PN10, Lev og læg",90,"Erfaringstal","STD",457.25,"Erfaringstal",0,0,"lbm","25 - 50","> 100"]
[0,"Distribution",null,"Distributionledninger","Ø200mm, diff. tæt PN10, Lev og læg",90,"Erfaringstal","STD",735.75,"Erfaringstal",0,0,"lbm","25 - 50","> 100"]
[0,"Distribution",null,"Distributionledninger","Ø225mm, diff. tæt PN10, Lev og læg",90,"Erfaringstal","STD",761,"Erfaringstal",0,0,"lbm","25 - 50","> 100"]
[0,"Distribution",null,"Distributionledninger","Ø160mm, diff. tæt PN16, Lev og læg ",110,"Erfaringstal","STD",547.5,"Erfaringstal",0,0,"lbm","25 - 50","> 100"]
[0,"Distribution",null,"Distributionledninger","Ø200mm, diff. tæt PN16, Lev og læg ",110,"Erfaringstal","STD",893,"Erfaringstal",0,0,"lbm","25 - 50","> 100"]
[0,"Distribution",null,"Distributionledninger","Ø225mm, diff. tæt PN16, Lev og læg ",110,"Erfaringstal","STD",1047,"Erfaringstal",0,0,"lbm","25 - 50","> 100"]
[1,"Distribution",null,"Forsyningsledninger","Ø63mm PN10, Lev og læg",90,"Erfaringstal","STD",104,"Erfaringstal",0,0,"lbm","0 - 25","50 - 100"]
[1,"Distribution",null,"Forsyningsledninger","Ø75mm PN10, Lev og læg",90,"Erfaringstal","STD",125,"Erfaringstal",0,0,"lbm","0 - 25","50 - 100"]
[1,"Distribution",null,"Forsyningsledninger","Ø90mm PN10, Lev og læg",90,"Erfaringstal","STD",162,"Erfaringstal",0,0,"lbm","0 - 25","50 - 100"]
[1,"Distribution",null,"Forsyningsledninger","Ø110mm PN10, Lev og læg",90,"Erfaringstal","STD",204,"Erfaringstal",0,0,"lbm","0 - 25","50 - 100"]
[1,"Distribution",null,"Forsyningsledninger","Ø63mm PN16, Lev og læg",110,"Erfaringstal","STD",132,"Erfaringstal",0,0,"lbm","0 - 25","50 - 100"]
[1,"Distribution",null,"Forsyningsledninger","Ø75mm PN16, Lev og læg",110,"Erfaringstal","STD",154,"Erfaringstal",0,0,"lbm","0 - 25","50 - 100"]
[1,"Distribution",null,"Forsyningsledninger","Ø90mm PN16, Lev og læg",110,"Erfaringstal","STD",205,"Erfaringstal",0,0,"lbm","0 - 25","50 - 100"]
[1,"Distribution",null,"Forsyningsledninger","Ø110mm PN16, Lev og læg",110,"Erfaringstal","STD",249,"Erfaringstal",0,0,"lbm","0 - 25","50 - 100"]
[1,"Distribution",null,"Forsyningsledninger","Ø63mm, diff. tæt PN10, Lev og læg",90,"Erfaringstal","STD",127.5,"Erfaringstal",0,0,"lbm","0 - 25","50 - 100"]
[1,"Distribution",null,"Forsyningsledninger","Ø75mm, diff. tæt PN10, Lev og læg",90,"Erfaringstal","STD",162,"Erfaringstal",0,0,"lbm","0 - 25","50 - 100"]
[1,"Distribution",null,"Forsyningsledninger","Ø90mm, diff. tæt PN10, Lev og læg",90,"Erfaringstal","STD",216.75,"Erfaringstal",0,0,"lbm","0 - 25","50 - 100"]
[1,"Distribution",null,"Forsyningsledninger","Ø110mm, diff. tæt PN10, Lev og læg",90,"Erfaringstal","STD",272.5,"Erfaringstal",0,0,"lbm","0 - 25","50 - 100"]
[1,"Distribution",null,"Forsyningsledninger","Ø63mm, diff. tæt PN16, Lev og læg",110,"Erfaringstal","STD",139.25,"Erfaringstal",0,0,"lbm","0 - 25","50 - 100"]
[1,"Distribution",null,"Forsyningsledninger","Ø75mm, diff. tæt PN16, Lev og læg",110,"Erfaringstal","STD",194,"Erfaringstal",0,0,"lbm","0 - 25","50 - 100"]
[1,"Distribution",null,"Forsyningsledninger","Ø90mm, diff. tæt PN16, Lev og læg",110,"Erfaringstal","STD",243,"Erfaringstal",0,0,"lbm","0 - 25","50 - 100"]
[1,"Distribution",null,"Forsyningsledninger","Ø110mm, diff. tæt PN16, Lev og læg",110,"Erfaringstal","STD",313.25,"Erfaringstal",0,0,"lbm","0 - 25","50 - 100"]
[0,"Distribution",null,"Ventil for PE-rør ","ø75mm",50,"Erfaringstal","STD",8255,"Erfaringstal",0,350,"stk","0 - 25","0 - 25"]
[0,"Distribution",null,"Ventil for PE-rør ","ø90mm",50,"Erfaringstal","STD",8774,"Erfaringstal",0,350,"stk","0 - 25","25 - 50"]
[0,"Distribution",null,"Ventil for PE-rør ","ø110mm",50,"Erfaringstal","STD",9838,"Erfaringstal",0,350,"stk","0 - 25","50 - 100"]
[0,"Distribution",null,"Ventil for PE-rør ","ø160mm",50,"Erfaringstal","STD",15389,"Erfaringstal",0,350,"stk","25 - 50","> 100"]
[0,"Distribution",null,"Ventil for PE-rør ","ø200mm",50,"Erfaringstal","STD",22374,"Erfaringstal",0,350,"stk","50 - 100","> 100"]
[0,"Distribution",null,"Ventil for PE-rør ","ø225mm",50,"Erfaringstal","STD",25058,"Erfaringstal",0,350,"stk","50 - 100","> 100"]
[0,"Distribution",null,"Ventil for PE-rør ","ø250mm",50,"Erfaringstal","STD",30886,"Erfaringstal",0,350,"stk","> 100","> 100"]
[0,"Distribution",null,"Ventil for PE-rør ","ø315mm",50,"Erfaringstal","STD",34466,"Erfaringstal",0,350,"stk","> 100","> 100"]
[1,"Distribution",null,"Anboring på PE-rør","ø50mm",50,"Erfaringstal","STD",2141,"Erfaringstal",0,0,"stk","0 - 25","0 - 25"]
[1,"Distribution",null,"Anboring på PE-rør","ø63mm",50,"Erfaringstal","STD",2759,"Erfaringstal",0,0,"stk","0 - 25","0 - 25"]
[1,"Distribution",null,"Anboring på PE-rør","ø75mm",50,"Erfaringstal","STD",2864,"Erfaringstal",0,0,"stk","0 - 25","0 - 25"]
[1,"Distribution",null,"Anboring på PE-rør","ø90mm",50,"Erfaringstal","STD",2885,"Erfaringstal",0,0,"stk","0 - 25","25 - 50"]
[1,"Distribution",null,"Anboring på PE-rør","ø110mm",50,"Erfaringstal","STD",2906,"Erfaringstal",0,0,"stk","0 - 25","50 - 100"]
[1,"Distribution",null,"Anboring på PE-rør","ø160mm",50,"Erfaringstal","STD",3315,"Erfaringstal",0,0,"stk","25 - 50","> 100"]
[1,"Distribution",null,"Anboring på PE-rør","ø200mm",50,"Erfaringstal","STD",3641,"Erfaringstal",0,0,"stk","50 - 100","> 100"]
[1,"Distribution",null,"Anboring på PE-rør","ø225mm",50,"Erfaringstal","STD",3747,"Erfaringstal",0,0,"stk","50 - 100","> 100"]
[1,"Distribution",null,"Anboring på PE-rør","ø250mm",50,"Erfaringstal","STD",5192,"Erfaringstal",0,0,"stk","> 100","> 100"]
[1,"Distribution",null,"Anboring på PE-rør","ø315mm",50,"Erfaringstal","STD",6606,"Erfaringstal",0,0,"stk","> 100","> 100"]
[0,"Distribution",null,"Stikledninger af PE-rør","ø32mm",90,"Erfaringstal","STD",35,"Erfaringstal",0,0,"lbm","0 - 25","0 - 25"]
[0,"Distribution",null,"Stikledninger af PE-rør","ø40mm",90,"Erfaringstal","STD",43,"Erfaringstal",0,0,"lbm","0 - 25","0 - 25"]
[0,"Distribution",null,"Stikledninger af PE-rør","ø50mm",90,"Erfaringstal","STD",63,"Erfaringstal",0,0,"lbm","0 - 25","0 - 25"]
[1,"Distribution",null,"Stikledningsventil","ø32mm",50,"Erfaringstal","STD",3515,"Erfaringstal",0,350,"stk","0 - 25","0 - 25"]
[1,"Distribution",null,"Stikledningsventil","ø40mm",50,"Erfaringstal","STD",3610,"Erfaringstal",0,350,"stk","0 - 25","0 - 25"]
[1,"Distribution",null,"Stikledningsventil","ø50mm",50,"Erfaringstal","STD",3829,"Erfaringstal",0,350,"stk","0 - 25","0 - 25"]
[0,"Distribution",null,"Sommerhusventil","ø32mm",50,"Erfaringstal","STD",5182,"Erfaringstal",0,350,"stk","0 - 25","0 - 25",null,null,"Land","By"]
[1,"Distribution",null,"PE-målerbrønde","ø400mm, PE-låg",50,"Polka","STD",3656,"Erfaringstal",0,0,"stk","0 - 25","0 - 25"]
[1,"Distribution",null,"PE-målerbrønde","ø400mm, alu-dæksel",50,"Polka","STD",4043,"Erfaringstal",0,0,"stk","0 - 25","0 - 25"]
[0,"Distribution",null,"Afregningsmåler","Mekanisk",8,"Polka","STD",1300,"Polka",0,350,"stk","0 - 25","25 - 50"]
[0,"Distribution",null,"Afregningsmåler","elektronisk < 1''",10,"Erfaringstal","STD",1620,"Erfaringstal",0,350,"stk","0 - 25","25 - 50"]
[0,"Distribution",null,"Afregningsmåler","elektronisk > 1''",10,"Erfaringstal","STD",2320,"Erfaringstal",0,350,"stk","25 - 50","50 - 100"]
[0,"Distribution",null,"Afregningsmåler","elektronisk < ø110mm (QN10)",10,"Polka","STD",20000,"Polka",0,350,"stk","0 - 25","50 - 100"]
[0,"Distribution",null,"Afregningsmåler","elektronisk > ø110mm",10,"Polka","STD",26000,"Polka",0,350,"stk","> 100","> 100"]
[1,"Distribution",null,"Brandhane","Type A, fast",50,"Erfaringstal","STD",35387,"Prishåndbogen",0,900,"stk","0 - 25","50 - 100"]
[1,"Distribution",null,"Brandhane","Type B, fast",50,"Erfaringstal","STD",33000,"Prishåndbogen",0,900,"stk","0 - 25","50 - 100"]
[1,"Distribution",null,"Brandhane","Type A, teleskopisk",50,"Erfaringstal","STD",35241,"Prishåndbogen",0,900,"stk","0 - 25","50 - 100"]
[1,"Distribution",null,"Brandhane","Type B, teleskopisk",50,"Erfaringstal","STD",33702,"Prishåndbogen",0,900,"stk","0 - 25","50 - 100"]
[0]
[0]
[0]
[0]
[0]
[0]
[0]
[0]
[0]
[0]
[0]
[0]
[0]
[0]
[0]
[0]
[0]
[0]
[0]
[0]
[0]
[0]
[0]
[0]
[0]
[0]
[0]
[0]
[0]
[0]
[0]
[0]
[0]
[0]
[0]
[0]
[0]
[0]
[0]
[0]
[0]
[0]
[0]
[0]
[0]
[0]
[0]
[0]
[0]
[0]
[0]
[0]
[0]
[0]
[0]
[0]
[0]
[0]
[0]
[0]
[0]
[0]
[0]
[0]
[0]
[0]
[0]
[0]
[0]
[0]
[0]
[0]
[0]
[0]
[0]
[0]
[0]
[0]
[0]
[0]
[0]
[0]
[0]
[0]
[0]
[0]
[0]
[0]
[0]
[0]
[0]
[0]
[0]
[0]
[0]
[0]
[0]
[0]
[0]
[0]
[0]
[0]
[0]
[0]
[0]
[0]
[0]
[0]
[0]
[0]
[0]
[0]
[0]
[0]
[0]
[0]
[0]
[0]
[0]
[0]
[0]
[0]
[0]
[0]
[0]
[0]
[0]
[0]
[0]
[0]
[0]
[0]
[0]
[0]
[0]
[0]
[0]
[0]
[0]
[0]
[0]
[0]
[0]
[0]
[0]
[0]
[0]
[0]
[0]
[0]
[0]
[0]
[0]
[0]
[0]
[0]
[0]
[0]
[0]
[0]
[0,null,null,null,null,null,null,null,null,null,null,null,null,null,null,null,null,null,null,null,null,null,null,null,null,null,null,null,null,null,null,null,null,null,null,null,null,null,null,null,null,null,null,null,0,0,0,0,0,0,0,0,0,0,0,0,0,0,0,0,0,0,0,0,0,0,0,0,0,0,0,0,0,0]
[0,null,null,null,null,null,null,null,null,null,null,null,null,null,null,null,null,null,null,null,null,null,null,null,null,null,null,null,null,null,null,null,null,null,null,null,null,null,null,null,null,null,null,null,0,0,0,0,0,0,0,0,0,0,0,0,0,0,0,0,0,0,0,0,0,0,0,0,0,0,0,0,0,0]
[0,null,null,null,null,null,null,null,null,null,null,null,null,null,null,null,null,null,null,null,null,null,null,null,null,null,null,null,null,null,null,null,null,null,null,null,null,null,null,null,null,null,null,null,0,0,0,0,0,0,0,0,0,0,0,0,0,0,0,0,0,0,0,0,0,0,0,0,0,0,0,0,0,0]
[0,null,null,null,null,null,null,null,null,null,null,null,null,null,null,null,null,null,null,null,null,null,null,null,null,null,null,null,null,null,null,null,null,null,null,null,null,null,null,null,null,null,null,null,0,0,0,0,0,0,0,0,0,0,0,0,0,0,0,0,0,0,0,0,0,0,0,0,0,0,0,0,0,0]

{"sheet":"PrisFaktorer","index":2,"n_rows":450,"n_cols":48,"rows_kept":450,"cut":false,"hidden":false,"merged":[[420,1,429,1],[430,1,439,1],[290,1,299,1],[300,1,309,1],[310,1,319,1],[320,1,329,1],[380,1,389,1],[330,1,339,1],[340,1,349,1],[350,1,359,1],[360,1,369,1],[370,1,379,1],[410,1,419,1],[390,1,399,1],[400,1,409,1],[220,1,229,1],[230,1,239,1],[80,1,89,1],[90,1,99,1],[100,1,109,1],[190,1,199,1],[160,1,169,1],[200,1,209,1],[130,1,139,1],[140,1,149,1],[150,1,159,1],[120,1,129,1],[260,1,269,1],[270,1,279,1],[250,0,449,0],[250,1,259,1],[10,0,169,0],[170,0,249,0],[170,1,179,1],[180,1,189,1],[240,1,249,1],[10,1,19,1],[20,1,29,1],[30,1,39,1],[440,1,449,1],[210,1,219,1],[110,1,119,1],[280,1,289,1],[6,24,6,26],[8,21,8,23],[8,24,8,26],[8,3,8,5],[8,6,8,8],[8,9,8,11],[8,12,8,14],[6,18,6,20],[7,3,7,5],[7,21,7,23],[7,24,7,26],[8,15,8,17],[8,18,8,20],[8,0,9,0],[8,1,9,1],[8,2,9,2],[6,0,7,2],[6,21,6,23],[6,12,6,14],[6,3,6,5],[6,6,6,8],[6,9,6,11],[6,15,6,17],[70,1,79,1],[7,33,7,35],[7,42,7,44],[7,30,7,32],[7,18,7,20],[7,15,7,17],[7,6,7,8],[7,9,7,11],[7,12,7,14],[8,33,8,35],[40,1,49,1],[50,1,59,1],[60,1,69,1],[8,30,8,32],[6,45,6,47],[7,45,7,47],[8,45,8,47],[6,27,6,29],[6,30,6,32],[6,33,6,35],[6,36,6,38],[6,39,6,41],[7,36,7,38],[7,39,7,41],[8,36,8,38],[8,39,8,41],[6,42,6,44],[8,42,8,44],[8,27,8,29],[7,27,7,29]]}
[]
[]
[]
[]
[]
[]
["Vurdering af\npris-faktorer",null,null,"Rammebetingelse 1",null,null,"Rammebetingelse 2",null,null,"Rammebetingelse 3",null,null,"Rammebetingelse 4",null,null,"Rammebetingelse 5",null,null,"Rammebetingelse 6",null,null,"Rammebetingelse 7",null,null,"Rammebetingelse 8",null,null,"Rammebetingelse 9",null,null,"Rammebetingelse 10",null,null,"Rammebetingelse 11",null,null,"Rammebetingelse 12",null,null,"Rammebetingelse 13",null,null,"Rammebetingelse 14",null,null,"Rammebetingelse 15"]
[null,null,null,"Kapacitet (m3/t)",null,null,"Geografisk placering",null,null,"Lokalitet (land/by)",null,null,"Årlig produktion",null,null,"Løftehøjde",null,null,"Geo-/hydrologiske vanskeligheder",null,null,"Råvands-kvalitet"]
["Hoved-\nfunktion","Teknologi-\ngruppe","Nr","Faktorer",null,null,"Faktorer",null,null,"Faktorer",null,null,"Faktorer",null,null,"Faktorer",null,null,"Faktorer",null,null,"Faktorer",null,null,"Faktorer",null,null,"Faktorer",null,null,"Faktorer",null,null,"Faktorer",null,null,"Faktorer",null,null,"Faktorer",null,null,"Faktorer",null,null,"Faktorer"]
[null,null,null,"Interval/kategori","Anlæg","Drift","Interval/kategori","Anlæg","Drift","Interval/kategori","Anlæg","Drift","Interval/kategori","Anlæg","Drift","Interval/kategori","Anlæg","Drift","Interval/kategori","Anlæg","Drift","Interval/kategori","Anlæg","Drift","Interval/kategori","Anlæg","Drift","Interval/kategori","Anlæg","Drift","Interval/kategori","Anlæg","Drift","Interval/kategori","Anlæg","Drift","Interval/kategori","Anlæg","Drift","Interval/kategori","Anlæg","Drift","Interval/kategori","Anlæg","Drift","Interval/kategori","Anlæg","Drift"]
["Kildeplads","Forundersøgelse",1,"0 - 25",1,1,95,1,1,"Land",1,1,"0 - 100.000",1,1,"0 - 30",1,1,"ingen","0,9",1,"simpel",1,1]
[null,null,2,"25 - 50",1,1,100,1,1,"By",1,1,"100.000 - 250.000",1,1,"30 - 60",1,1,"moderat",1,1,"moderat",1,1]
[null,null,3,"50 - 100",1,1,110,1,1,"City",1,1,"250.000 - 500.000",1,1,"> 60",1,1,"vanskelig","1,1",1,"vanskelig",1,1]
[null,null,4,"> 100",1,1,115,1,1,"Indre city",1,1,"500.000 - 1 mio",1,1,null,null,null,"meget vanskelig","1,5",1,"meget vanskelig",1,1]
[null,null,5,null,null,null,null,null,null,null,null,null,"> 1 mio",1,1]
[null,null,6]
[null,null,7]
[null,null,8]
[null,null,9]
[null,null,10]
[null,"Boreplads",1,"0 - 25",1,1,95,"0,95",1,"Land",1,1,"0 - 100.000",1,1,"0 - 30",1,1,"ingen",1,1,"simpel",1,1]
[null,null,2,"25 - 50",1,1,100,1,1,"By","1,1",1,"100.000 - 250.000",1,1,"30 - 60",1,1,"moderat",1,1,"moderat",1,1]
[null,null,3,"50 - 100",1,1,110,"1,1",1,"City","1,5",1,"250.000 - 500.000",1,1,"> 60",1,1,"vanskelig","1,2",1,"vanskelig",1,1]
[null,null,4,"> 100",1,1,115,"1,15",1,"Indre city",2,1,"500.000 - 1 mio",1,1,null,null,null,"meget vanskelig","1,5",1,"meget vanskelig",1,1]
[null,null,5,null,null,null,null,null,null,null,null,null,"> 1 mio",1,1]
[null,null,6]
[null,null,7]
[null,null,8]
[null,null,9]
[null,null,10]
[null,"Boringsudførelse",1,"0 - 25",1,1,95,"0,95",1,"Land",1,1,"0 - 100.000",1,1,"0 - 30",1,1,"ingen",1,1,"simpel",1,1]
[null,null,2,"25 - 50",1,1,100,1,1,"By",1,1,"100.000 - 250.000",1,1,"30 - 60",1,1,"moderat","1,1",1,"moderat",1,1]
[null,null,3,"50 - 100",1,1,110,"1,1",1,"City",1,1,"250.000 - 500.000",1,1,"> 60",1,1,"vanskelig","1,5",1,"vanskelig",1,1]
[null,null,4,"> 100",1,1,115,"1,15",1,"Indre city",1,1,"500.000 - 1 mio",1,1,null,null,null,"meget vanskelig",3,1,"meget vanskelig",1,1]
[null,null,5,null,null,null,null,null,null,null,null,null,"> 1 mio",1,1]
[null,null,6]
[null,null,7]
[null,null,8]
[null,null,9]
[null,null,10]
[null,"Filter m/gruskastning",1,"0 - 25",1,1,95,"0,95",1,"Land",1,1,"0 - 100.000",1,1,"0 - 30",1,1,"ingen",1,1,"simpel",1,1]
[null,null,2,"25 - 50",1,1,100,1,1,"By",1,1,"100.000 - 250.000",1,1,"30 - 60",1,1,"moderat","1,1",1,"moderat",1,1]
[null,null,3,"50 - 100",1,1,110,"1,1",1,"City",1,1,"250.000 - 500.000",1,1,"> 60",1,1,"vanskelig","1,2",1,"vanskelig",1,1]
[null,null,4,"> 100",1,1,115,"1,15",1,"Indre city",1,1,"500.000 - 1 mio",1,1,null,null,null,"meget vanskelig","1,5",1,"meget vanskelig",1,1]
[null,null,5,null,null,null,null,null,null,null,null,null,"> 1 mio",1,1]
[null,null,6]
[null,null,7]
[null,null,8]
[null,null,9]
[null,null,10]
[null,"Forerør m/udbygning",1,"0 - 25",1,1,95,"0,95",1,"Land",1,1,"0 - 100.000",1,1,"0 - 30",1,1,"ingen",1,1,"simpel",1,1]
[null,null,2,"25 - 50",1,1,100,1,1,"By",1,1,"100.000 - 250.000",1,1,"30 - 60",1,1,"moderat","1,1",1,"moderat",1,1]
[null,null,3,"50 - 100",1,1,110,"1,1",1,"City",1,1,"250.000 - 500.000",1,1,"> 60",1,1,"vanskelig","1,2",1,"vanskelig",1,1]
[null,null,4,"> 100",1,1,115,"1,15",1,"Indre city",1,1,"500.000 - 1 mio",1,1,null,null,null,"meget vanskelig","1,5",1,"meget vanskelig",1,1]
[null,null,5,null,null,null,null,null,null,null,null,null,"> 1 mio",1,1]
[null,null,6]
[null,null,7]
[null,null,8]
[null,null,9]
[null,null,10]
[null,"Tilbagestøbt forerør over åbent indtag",1,"0 - 25",1,1,95,"0,95",1,"Land",1,1,"0 - 100.000",1,1,"0 - 30",1,1,"ingen",1,1,"simpel",1,1]
[null,null,2,"25 - 50",1,1,100,1,1,"By",1,1,"100.000 - 250.000",1,1,"30 - 60",1,1,"moderat","1,1",1,"moderat",1,1]
[null,null,3,"50 - 100",1,1,110,"1,1",1,"City",1,1,"250.000 - 500.000",1,1,"> 60",1,1,"vanskelig","1,2",1,"vanskelig",1,1]
[null,null,4,"> 100",1,1,115,"1,15",1,"Indre city",1,1,"500.000 - 1 mio",1,1,null,null,null,"meget vanskelig","1,5",1,"meget vanskelig",1,1]
[null,null,5,null,null,null,null,null,null,null,null,null,"> 1 mio",1,1]
[null,null,6]
[null,null,7]
[null,null,8]
[null,null,9]
[null,null,10]
[null,"Boringsudvikling",1,"0 - 25","0,8",1,95,"0,95",1,"Land",1,1,"0 - 100.000",1,1,"0 - 30",1,1,"ingen",1,1,"simpel",1,1]
[null,null,2,"25 - 50",1,1,100,1,1,"By",1,1,"100.000 - 250.000",1,1,"30 - 60",1,1,"moderat",1,1,"moderat",1,1]
[null,null,3,"50 - 100","1,2",1,110,"1,1",1,"City",1,1,"250.000 - 500.000",1,1,"> 60",1,1,"vanskelig",1,1,"vanskelig",1,1]
[null,null,4,"> 100","1,5",1,115,"1,15",1,"Indre city",1,1,"500.000 - 1 mio",1,1,null,null,null,"meget vanskelig",1,1,"meget vanskelig",1,1]
[null,null,5,null,null,null,null,null,null,null,null,null,"> 1 mio",1,1]
[null,null,6]
[null,null,7]
[null,null,8]
[null,null,9]
[null,null,10]
[null,"Boringsudvikling/renovering",1,"0 - 25","0,8",1,95,"0,95",1,"Land",1,1,"0 - 100.000",1,1,"0 - 30",1,1,"ingen",1,1,"simpel",1,1]
[null,null,2,"25 - 50",1,1,100,1,1,"By",1,1,"100.000 - 250.000",1,1,"30 - 60",1,1,"moderat",1,1,"moderat",1,1]
[null,null,3,"50 - 100","1,2",1,110,"1,1",1,"City",1,1,"250.000 - 500.000",1,1,"> 60",1,1,"vanskelig",1,1,"vanskelig",1,1]
[null,null,4,"> 100","1,5",1,115,"1,15",1,"Indre city",1,1,"500.000 - 1 mio",1,1,null,null,null,"meget vanskelig",1,1,"meget vanskelig",1,1]
[null,null,5,null,null,null,null,null,null,null,null,null,"> 1 mio",1,1]
[null,null,6]
[null,null,7]
[null,null,8]
[null,null,9]
[null,null,10]
[null,"Pumper",1,"0 - 25",1,1,95,"0,95",1,"Land",1,1,"0 - 100.000",1,1,"0 - 30","0,8","0,55","ingen",1,1,"simpel",1,1]
[null,null,2,"25 - 50",1,1,100,1,1,"By",1,1,"100.000 - 250.000",1,2,"30 - 60",1,1,"moderat",1,1,"moderat",1,1]
[null,null,3,"50 - 100",1,1,110,"1,1",1,"City",1,1,"250.000 - 500.000",1,4,"> 60","1,35","1,95","vanskelig",1,1,"vanskelig",1,1]
[null,null,4,"> 100",1,1,115,"1,15",1,"Indre city",1,1,"500.000 - 1 mio",1,8,null,null,null,"meget vanskelig",1,1,"meget vanskelig",1,1]
[null,null,5,null,null,null,null,null,null,null,null,null,"> 1 mio",1,12]
[null,null,6]
[null,null,7]
[null,null,8]
[null,null,9]
[null,null,10]
[null,"Stigrør",1,"0 - 25",1,1,95,"0,95",1,"Land",1,1,"0 - 100.000",1,1,"0 - 30",1,1,"ingen",1,1,"simpel",1,1]
[null,null,2,"25 - 50",1,1,100,1,1,"By",1,1,"100.000 - 250.000",1,1,"30 - 60",1,1,"moderat",1,1,"moderat",1,1]
[null,null,3,"50 - 100",1,1,110,"1,1",1,"City",1,1,"250.000 - 500.000",1,1,"> 60",1,1,"vanskelig",1,1,"vanskelig",1,1]
[null,null,4,"> 100",1,1,115,"1,15",1,"Indre city",1,1,"500.000 - 1 mio",1,1,null,null,null,"meget vanskelig",1,1,"meget vanskelig",1,1]
[null,null,5,null,null,null,null,null,null,null,null,null,"> 1 mio",1,1]
[null,null,6]
[null,null,7]
[null,null,8]
[null,null,9]
[null,null,10]
[null,"VLT-styring af dykpumpe",1,"0 - 25",1,1,95,1,1,"Land",1,1,"0 - 100.000",1,1,"0 - 30",1,1,"ingen",1,1,"simpel",1,1]
[null,null,2,"25 - 50",1,1,100,1,1,"By",1,1,"100.000 - 250.000",1,1,"30 - 60",1,1,"moderat",1,1,"moderat",1,1]
[null,null,3,"50 - 100",1,1,110,1,1,"City",1,1,"250.000 - 500.000",1,1,"> 60",1,1,"vanskelig",1,1,"vanskelig",1,1]
[null,null,4,"> 100",1,1,115,1,1,"Indre city",1,1,"500.000 - 1 mio",1,1,null,null,null,"meget vanskelig",1,1,"meget vanskelig",1,1]
[null,null,5,null,null,null,null,null,null,null,null,null,"> 1 mio",1,1]
[null,null,6]
[null,null,7]
[null,null,8]
[null,null,9]
[null,null,10]
[null,"Målere og transmittere",1,"0 - 25",1,1,95,1,1,"Land",1,1,"0 - 100.000",1,1,"0 - 30",1,1,"ingen",1,1,"simpel",1,1]
[null,null,2,"25 - 50",1,1,100,1,1,"By",1,1,"100.000 - 250.000",1,1,"30 - 60",1,1,"moderat",1,1,"moderat",1,1]
[null,null,3,"50 - 100",1,1,110,1,1,"City",1,1,"250.000 - 500.000",1,1,"> 60",1,1,"vanskelig",1,1,"vanskelig",1,1]
[null,null,4,"> 100",1,1,115,1,1,"Indre city",1,1,"500.000 - 1 mio",1,1,null,null,null,"meget vanskelig",1,1,"meget vanskelig",1,1]
[null,null,5,null,null,null,null,null,null,null,null,null,"> 1 mio",1,1]
[null,null,6]
[null,null,7]
[null,null,8]
[null,null,9]
[null,null,10]
[null,"Råvandsstation",1,"0 - 25",1,1,95,"0,95",1,"Land",1,1,"0 - 100.000",1,1,"0 - 30",1,1,"ingen",1,1,"simpel",1,1]
[null,null,2,"25 - 50",1,1,100,1,1,"By",1,1,"100.000 - 250.000",1,1,"30 - 60",1,1,"moderat",1,1,"moderat",1,1]
[null,null,3,"50 - 100",1,1,110,"1,1",1,"City",1,1,"250.000 - 500.000",1,1,"> 60",1,1,"vanskelig",1,1,"vanskelig",1,1]
[null,null,4,"> 100",1,1,115,"1,15",1,"Indre city",1,1,"500.000 - 1 mio",1,1,null,null,null,"meget vanskelig",1,1,"meget vanskelig",1,1]
[null,null,5,null,null,null,null,null,null,null,null,null,"> 1 mio",1,1]
[null,null,6]
[null,null,7]
[null,null,8]
[null,null,9]
[null,null,10]
[null,"Indhegning",1,"0 - 25",1,1,95,"0,95",1,"Land",1,1,"0 - 100.000",1,1,"0 - 30",1,1,"ingen",1,1,"simpel",1,1]
[null,null,2,"25 - 50",1,1,100,1,1,"By",1,1,"100.000 - 250.000",1,1,"30 - 60",1,1,"moderat",1,1,"moderat",1,1]
[null,null,3,"50 - 100",1,1,110,"1,1",1,"City",1,1,"250.000 - 500.000",1,1,"> 60",1,1,"vanskelig",1,1,"vanskelig",1,1]
[null,null,4,"> 100",1,1,115,"1,15",1,"Indre city",1,1,"500.000 - 1 mio",1,1,null,null,null,"meget vanskelig",1,1,"meget vanskelig",1,1]
[null,null,5,null,null,null,null,null,null,null,null,null,"> 1 mio",1,1]
[null,null,6]
[null,null,7]
[null,null,8]
[null,null,9]
[null,null,10]
[null,"Råvandsledning",1,"0 - 25",1,1,95,"0,95",1,"Land","0,9",1,"0 - 100.000",1,1,"0 - 30",1,1,"ingen","0,9",1,"simpel",1,1]
[null,null,2,"25 - 50",1,1,100,1,1,"By",1,1,"100.000 - 250.000",1,1,"30 - 60",1,1,"moderat",1,1,"moderat",1,1]
[null,null,3,"50 - 100",1,1,110,"1,1",1,"City","1,4",1,"250.000 - 500.000",1,1,"> 60",1,1,"vanskelig","1,4",1,"vanskelig",1,1]
[null,null,4,"> 100",1,1,115,"1,15",1,"Indre city","2,1",1,"500.000 - 1 mio",1,1,null,null,null,"meget vanskelig","2,1",1,"meget vanskelig",1,1]
[null,null,5,null,null,null,null,null,null,null,null,null,"> 1 mio",1,1]
[null,null,6]
[null,null,7]
[null,null,8]
[null,null,9]
[null,null,10]
[null,"Sløjfning",1,"0 - 25",1,1,95,"0,95",1,"Land",1,1,"0 - 100.000",1,1,"0 - 30",1,1,"ingen",1,1,"simpel",1,1]
[null,null,2,"25 - 50",1,1,100,1,1,"By",1,1,"100.000 - 250.000",1,1,"30 - 60",1,1,"moderat","1,1",1,"moderat",1,1]
[null,null,3,"50 - 100",1,1,110,"1,1",1,"City",1,1,"250.000 - 500.000",1,1,"> 60",1,1,"vanskelig","1,5",1,"vanskelig",1,1]
[null,null,4,"> 100",1,1,115,"1,15",1,"Indre city",1,1,"500.000 - 1 mio",1,1,null,null,null,"meget vanskelig",3,1,"meget vanskelig",1,1]
[null,null,5,null,null,null,null,null,null,null,null,null,"> 1 mio",1,1]
[null,null,6]
[null,null,7]
[null,null,8]
[null,null,9]
[null,null,10]
["Vandværk","Beluftning",1,"0 - 25","1,15",1,95,"0,95",1,"Land",1,1,"0 - 100.000",1,"1,2","0 - 30",1,1,"ingen",1,1,"simpel","0,9","0,9"]
[null,null,2,"25 - 50",1,1,100,1,1,"By",1,1,"100.000 - 250.000",1,"1,1","30 - 60",1,1,"moderat",1,1,"moderat",1,1]
[null,null,3,"50 - 100","0,95",1,110,"1,1",1,"City",1,1,"250.000 - 500.000",1,1,"> 60",1,1,"vanskelig",1,1,"vanskelig","1,15","1,2"]
[null,null,4,"> 100","0,8",1,115,"1,15",1,"Indre city",1,1,"500.000 - 1 mio",1,"0,92",null,null,null,"meget vanskelig",1,1,"meget vanskelig","1,3","1,5"]
[null,null,5,null,null,null,null,null,null,null,null,null,"> 1 mio",1,"0,9"]
[null,null,6]
[null,null,7]
[null,null,8]
[null,null,9]
[null,null,10]
[null,"Filtrering",1,"0 - 25","1,25",1,95,"0,95",1,"Land",1,1,"0 - 100.000",1,"1,1","0 - 30",1,1,"ingen",1,1,"simpel","0,9","0,9"]
[null,null,2,"25 - 50",1,1,100,1,1,"By",1,1,"100.000 - 250.000",1,"1,05","30 - 60",1,1,"moderat",1,1,"moderat",1,1]
[null,null,3,"50 - 100","0,9",1,110,"1,1",1,"City",1,1,"250.000 - 500.000",1,1,"> 60",1,1,"vanskelig",1,1,"vanskelig","1,2","1,2"]
[null,null,4,"> 100","0,85",1,115,"1,15",1,"Indre city",1,1,"500.000 - 1 mio",1,"0,97",null,null,null,"meget vanskelig",1,1,"meget vanskelig","1,4","1,4"]
[null,null,5,null,null,null,null,null,null,null,null,null,"> 1 mio",1,"0,95"]
[null,null,6]
[null,null,7]
[null,null,8]
[null,null,9]
[null,null,10]
[null,"Skylleanlæg",1,"0 - 25","1,15","1,15",95,"0,95",1,"Land",1,1,"0 - 100.000",1,"1,2","0 - 30",1,1,"ingen",1,1,"simpel","0,8","0,8"]
[null,null,2,"25 - 50",1,1,100,1,1,"By",1,1,"100.000 - 250.000",1,1,"30 - 60",1,1,"moderat",1,1,"moderat",1,1]
[null,null,3,"50 - 100","0,95","0,95",110,"1,1",1,"City",1,1,"250.000 - 500.000",1,"0,95","> 60",1,1,"vanskelig",1,1,"vanskelig","1,1","1,1"]
[null,null,4,"> 100","0,8","0,8",115,"1,15",1,"Indre city",1,1,"500.000 - 1 mio",1,"0,9",null,null,null,"meget vanskelig",1,1,"meget vanskelig","1,2","1,2"]
[null,null,5,null,null,null,null,null,null,null,null,null,"> 1 mio",1,"0,85"]
[null,null,6]
[null,null,7]
[null,null,8]
[null,null,9]
[null,null,10]
[null,"Rentvandsbeholder",1,"0 - 25","1,3","1,05",95,"0,95",1,"Land",1,1,"0 - 100.000","1,2",1,"0 - 30",1,1,"ingen",1,1,"simpel",1,1]
[null,null,2,"25 - 50",1,1,100,1,1,"By",1,1,"100.000 - 250.000",1,1,"30 - 60",1,1,"moderat",1,1,"moderat",1,1]
[null,null,3,"50 - 100","0,9","0,98",110,"1,1",1,"City",1,1,"250.000 - 500.000","0,9",1,"> 60",1,1,"vanskelig",1,1,"vanskelig",1,1]
[null,null,4,"> 100","0,8","0,95",115,"1,15",1,"Indre city",1,1,"500.000 - 1 mio","0,85",1,null,null,null,"meget vanskelig",1,1,"meget vanskelig",1,1]
[null,null,5,null,null,null,null,null,null,null,null,null,"> 1 mio","0,8",1]
[null,null,6]
[null,null,7]
[null,null,8]
[null,null,9]
[null,null,10]
[null,"Udvidet vandbehandling",1,"0 - 25","1,5","1,5",95,"0,95",1,"Land",1,1,"0 - 100.000",1,2,"0 - 30",1,1,"ingen",1,1,"simpel","0,95","0,95"]
[null,null,2,"25 - 50","1,2","1,2",100,1,1,"By",1,1,"100.000 - 250.000",1,"1,5","30 - 60",1,1,"moderat",1,1,"moderat",1,1]
[null,null,3,"50 - 100",1,1,110,"1,1",1,"City",1,1,"250.000 - 500.000",1,"1,3","> 60",1,1,"vanskelig",1,1,"vanskelig","1,3","1,3"]
[null,null,4,"> 100","0,8","0,8",115,"1,15",1,"Indre city",1,1,"500.000 - 1 mio",1,1,null,null,null,"meget vanskelig",1,1,"meget vanskelig","1,5","1,5"]
[null,null,5,null,null,null,null,null,null,null,null,null,"> 1 mio",1,"0,95"]
[null,null,6]
[null,null,7]
[null,null,8]
[null,null,9]
[null,null,10]
[null,"Maskin / El",1,"0 - 25","1,4","1,05",95,"0,95",1,"Land",1,1,"0 - 100.000",1,1,"0 - 30",1,1,"ingen",1,1,"simpel",1,1]
[null,null,2,"25 - 50","1,3","1,04",100,1,1,"By",1,1,"100.000 - 250.000",1,1,"30 - 60",1,1,"moderat",1,1,"moderat",1,1]
[null,null,3,"50 - 100","1,1","1,02",110,"1,1",1,"City",1,1,"250.000 - 500.000",1,1,"> 60",1,1,"vanskelig",1,1,"vanskelig",1,1]
[null,null,4,"> 100",1,1,115,"1,15",1,"Indre city",1,1,"500.000 - 1 mio",1,1,null,null,null,"meget vanskelig",1,1,"meget vanskelig",1,1]
[null,null,5,null,null,null,null,null,null,null,null,null,"> 1 mio",1,1]
[null,null,6]
[null,null,7]
[null,null,8]
[null,null,9]
[null,null,10]
[null,"Styring",1,"0 - 25","1,2","1,05",95,"0,95",1,"Land",1,1,"0 - 100.000",1,1,"0 - 30",1,1,"ingen",1,1,"simpel",1,1]
[null,null,2,"25 - 50",1,"1,04",100,1,1,"By",1,1,"100.000 - 250.000",1,1,"30 - 60",1,1,"moderat",1,1,"moderat",1,1]
[null,null,3,"50 - 100","0,95","1,02",110,"1,1",1,"City",1,1,"250.000 - 500.000",1,1,"> 60",1,1,"vanskelig",1,1,"vanskelig",1,1]
[null,null,4,"> 100","0,85",1,115,"1,15",1,"Indre city",1,1,"500.000 - 1 mio",1,1,null,null,null,"meget vanskelig",1,1,"meget vanskelig",1,1]
[null,null,5,null,null,null,null,null,null,null,null,null,"> 1 mio",1,1]
[null,null,6]
[null,null,7]
[null,null,8]
[null,null,9]
[null,null,10]
[null,"Bygning",1,"0 - 25",1,1,95,"0,95",1,"Land",1,1,"0 - 100.000","1,2","1,2","0 - 30",1,1,"ingen",1,1,"simpel",1,1]
[null,null,2,"25 - 50",1,1,100,1,1,"By",1,1,"100.000 - 250.000","1,1","1,1","30 - 60",1,1,"moderat",1,1,"moderat",1,1]
[null,null,3,"50 - 100",1,1,110,"1,1",1,"City","1,05",1,"250.000 - 500.000",1,1,"> 60",1,1,"vanskelig",1,1,"vanskelig",1,1]
[null,null,4,"> 100",1,1,115,"1,15",1,"Indre city","1,1",1,"500.000 - 1 mio","0,95","0,95",null,null,null,"meget vanskelig",1,1,"meget vanskelig",1,1]
[null,null,5,null,null,null,null,null,null,null,null,null,"> 1 mio","0,9","0,9"]
[null,null,6]
[null,null,7]
[null,null,8]
[null,null,9]
[null,null,10]
["Distribution","Rentvandsbeholder",1,"0 - 25","1,3","1,05",95,"0,95",1,"Land",1,1,"0 - 100.000","1,2",1,"0 - 30",1,1,"ingen",1,1,"simpel",1,1]
[null,null,2,"25 - 50",1,1,100,1,1,"By",1,1,"100.000 - 250.000",1,1,"30 - 60",1,1,"moderat",1,1,"moderat",1,1]
[null,null,3,"50 - 100","0,9","0,98",110,"1,1",1,"City",1,1,"250.000 - 500.000","0,9",1,"> 60",1,1,"vanskelig",1,1,"vanskelig",1,1]
[null,null,4,"> 100","0,8","0,95",115,"1,15",1,"Indre city",1,1,"500.000 - 1 mio","0,85",1,null,null,null,"meget vanskelig",1,1,"meget vanskelig",1,1]
[null,null,5,null,null,null,null,null,null,null,null,null,"> 1 mio","0,8",1]
[null,null,6]
[null,null,7]
[null,null,8]
[null,null,9]
[null,null,10]
[null,"Udpumpningsanlæg",1,"0 - 25",1,1,95,"0,95",1,"Land",1,1,"0 - 100.000",1,1,"0 - 30",1,1,"ingen",1,1,"simpel",1,1]
[null,null,2,"25 - 50",1,1,100,1,1,"By",1,1,"100.000 - 250.000",1,1,"30 - 60",1,"1,2","moderat",1,1,"moderat",1,1]
[null,null,3,"50 - 100",1,1,110,"1,1",1,"City",1,1,"250.000 - 500.000",1,1,"> 60",1,"1,4","vanskelig",1,1,"vanskelig",1,1]
[null,null,4,"> 100",1,1,115,"1,15",1,"Indre city",1,1,"500.000 - 1 mio",1,1,null,null,null,"meget vanskelig",1,1,"meget vanskelig",1,1]
[null,null,5,null,null,null,null,null,null,null,null,null,"> 1 mio",1,1]
[null,null,6]
[null,null,7]
[null,null,8]
[null,null,9]
[null,null,10]
[null,"Frekvensomformer ",1,"0 - 25",1,1,95,"0,95",1,"Land",1,1,"0 - 100.000",1,1,"0 - 30",1,1,"ingen",1,1,"simpel",1,1]
[null,null,2,"25 - 50",1,1,100,1,1,"By",1,1,"100.000 - 250.000",1,1,"30 - 60",1,1,"moderat",1,1,"moderat",1,1]
[null,null,3,"50 - 100",1,1,110,"1,1",1,"City",1,1,"250.000 - 500.000",1,1,"> 60",1,1,"vanskelig",1,1,"vanskelig",1,1]
[null,null,4,"> 100",1,1,115,"1,15",1,"Indre city",1,1,"500.000 - 1 mio",1,1,null,null,null,"meget vanskelig",1,1,"meget vanskelig",1,1]
[null,null,5,null,null,null,null,null,null,null,null,null,"> 1 mio",1,1]
[null,null,6]
[null,null,7]
[null,null,8]
[null,null,9]
[null,null,10]
[null,"Flowmåler",1,"0 - 25",1,1,95,"0,95",1,"Land",1,1,"0 - 100.000",1,1,"0 - 30",1,1,"ingen",1,1,"simpel",1,1]
[null,null,2,"25 - 50",1,1,100,1,1,"By",1,1,"100.000 - 250.000",1,1,"30 - 60",1,1,"moderat",1,1,"moderat",1,1]
[null,null,3,"50 - 100",1,1,110,"1,1",1,"City",1,1,"250.000 - 500.000",1,1,"> 60",1,1,"vanskelig",1,1,"vanskelig",1,1]
[null,null,4,"> 100",1,1,115,"1,15",1,"Indre city",1,1,"500.000 - 1 mio",1,1,null,null,null,"meget vanskelig",1,1,"meget vanskelig",1,1]
[null,null,5,null,null,null,null,null,null,null,null,null,"> 1 mio",1,1]
[null,null,6]
[null,null,7]
[null,null,8]
[null,null,9]
[null,null,10]
[null,"Trykforøgeranlæg ",1,"0 - 25",1,1,95,"0,95",1,"Land",1,1,"0 - 100.000",1,1,"0 - 30",1,1,"ingen",1,1,"simpel",1,1]
[null,null,2,"25 - 50",1,1,100,1,1,"By",1,1,"100.000 - 250.000",1,1,"30 - 60",1,"1,2","moderat",1,1,"moderat",1,1]
[null,null,3,"50 - 100",1,1,110,"1,1",1,"City",1,1,"250.000 - 500.000",1,1,"> 60",1,"1,4","vanskelig",1,1,"vanskelig",1,1]
[null,null,4,"> 100",1,1,115,"1,15",1,"Indre city",1,1,"500.000 - 1 mio",1,1,null,null,null,"meget vanskelig",1,1,"meget vanskelig",1,1]
[null,null,5,null,null,null,null,null,null,null,null,null,"> 1 mio",1,1]
[null,null,6]
[null,null,7]
[null,null,8]
[null,null,9]
[null,null,10]
[null,"UV-anlæg",1,"0 - 25",1,1,95,"0,95",1,"Land",1,1,"0 - 100.000",1,1,"0 - 30",1,1,"ingen",1,1,"simpel",1,1]
[null,null,2,"25 - 50",1,1,100,1,1,"By",1,1,"100.000 - 250.000",1,1,"30 - 60",1,1,"moderat",1,1,"moderat",1,"1,25"]
[null,null,3,"50 - 100",1,1,110,"1,1",1,"City",1,1,"250.000 - 500.000",1,1,"> 60",1,1,"vanskelig",1,1,"vanskelig",1,"1,5"]
[null,null,4,"> 100",1,1,115,"1,15",1,"Indre city",1,1,"500.000 - 1 mio",1,1,null,null,null,"meget vanskelig",1,1,"meget vanskelig",1,2]
[null,null,5,null,null,null,null,null,null,null,null,null,"> 1 mio",1,1]
[null,null,6]
[null,null,7]
[null,null,8]
[null,null,9]
[null,null,10]
[null,"Sektionsbrønd",1,"0 - 25",1,1,95,"0,95",1,"Land","0,9",1,"0 - 100.000",1,1,"0 - 30",1,1,"ingen","0,9",1,"simpel",1,1]
[null,null,2,"25 - 50",1,1,100,1,1,"By",1,1,"100.000 - 250.000",1,1,"30 - 60",1,1,"moderat",1,1,"moderat",1,1]
[null,null,3,"50 - 100",1,1,110,"1,1",1,"City","1,1",1,"250.000 - 500.000",1,1,"> 60",1,1,"vanskelig","1,4",1,"vanskelig",1,1]
[null,null,4,"> 100",1,1,115,"1,15",1,"Indre city","1,2",1,"500.000 - 1 mio",1,1,null,null,null,"meget vanskelig","2,1",1,"meget vanskelig",1,1]
[null,null,5,null,null,null,null,null,null,null,null,null,"> 1 mio",1,1]
[null,null,6]
[null,null,7]
[null,null,8]
[null,null,9]
[null,null,10]
[null,"Ledningsgrav",1,"0 - 25",1,1,95,"0,95",1,"Land","0,9",1,"0 - 100.000",1,1,"0 - 30",1,1,"ingen","0,9",1,"simpel",1,1]
[null,null,2,"25 - 50",1,1,100,1,1,"By",1,1,"100.000 - 250.000",1,1,"30 - 60",1,1,"moderat",1,1,"moderat",1,1]
[null,null,3,"50 - 100",1,1,110,"1,1",1,"City","1,4",1,"250.000 - 500.000",1,1,"> 60",1,1,"vanskelig","1,4",1,"vanskelig",1,1]
[null,null,4,"> 100",1,1,115,"1,15",1,"Indre city","2,1",1,"500.000 - 1 mio",1,1,null,null,null,"meget vanskelig","2,1",1,"meget vanskelig",1,1]
[null,null,5,null,null,null,null,null,null,null,null,null,"> 1 mio",1,1]
[null,null,6]
[null,null,7]
[null,null,8]
[null,null,9]
[null,null,10]
[null,"Styret underboring ",1,"0 - 25",1,1,95,"0,95",1,"Land","0,9",1,"0 - 100.000",1,1,"0 - 30",1,1,"ingen","0,9",1,"simpel",1,1]
[null,null,2,"25 - 50",1,1,100,1,1,"By",1,1,"100.000 - 250.000",1,1,"30 - 60",1,1,"moderat",1,1,"moderat",1,1]
[null,null,3,"50 - 100",1,1,110,"1,1",1,"City","1,4",1,"250.000 - 500.000",1,1,"> 60",1,1,"vanskelig","1,4",1,"vanskelig",1,1]
[null,null,4,"> 100",1,1,115,"1,15",1,"Indre city","2,1",1,"500.000 - 1 mio",1,1,null,null,null,"meget vanskelig","2,1",1,"meget vanskelig",1,1]
[null,null,5,null,null,null,null,null,null,null,null,null,"> 1 mio",1,1]
[null,null,6]
[null,null,7]
[null,null,8]
[null,null,9]
[null,null,10]
[null,"Transmissionsledninger",1,"0 - 25",1,1,95,"0,95",1,"Land","0,9",1,"0 - 100.000",1,1,"0 - 30",1,1,"ingen","0,9",1,"simpel",1,1]
[null,null,2,"25 - 50",1,1,100,1,1,"By",1,1,"100.000 - 250.000",1,1,"30 - 60",1,1,"moderat",1,1,"moderat",1,1]
[null,null,3,"50 - 100",1,1,110,"1,1",1,"City","1,4",1,"250.000 - 500.000",1,1,"> 60",1,1,"vanskelig","1,4",1,"vanskelig",1,1]
[null,null,4,"> 100",1,1,115,"1,15",1,"Indre city","2,1",1,"500.000 - 1 mio",1,1,null,null,null,"meget vanskelig","2,1",1,"meget vanskelig",1,1]
[null,null,5,null,null,null,null,null,null,null,null,null,"> 1 mio",1,1]
[null,null,6]
[null,null,7]
[null,null,8]
[null,null,9]
[null,null,10]
[null,"Distributionledninger",1,"0 - 25",1,1,95,"0,95",1,"Land","0,9",1,"0 - 100.000",1,1,"0 - 30",1,1,"ingen","0,9",1,"simpel",1,1]
[null,null,2,"25 - 50",1,1,100,1,1,"By",1,1,"100.000 - 250.000",1,1,"30 - 60",1,1,"moderat",1,1,"moderat",1,1]
[null,null,3,"50 - 100",1,1,110,"1,1",1,"City","1,4",1,"250.000 - 500.000",1,1,"> 60",1,1,"vanskelig","1,4",1,"vanskelig",1,1]
[null,null,4,"> 100",1,1,115,"1,15",1,"Indre city","2,1",1,"500.000 - 1 mio",1,1,null,null,null,"meget vanskelig","2,1",1,"meget vanskelig",1,1]
[null,null,5,null,null,null,null,null,null,null,null,null,"> 1 mio",1,1]
[null,null,6]
[null,null,7]
[null,null,8]
[null,null,9]
[null,null,10]
[null,"Forsyningsledninger",1,"0 - 25",1,1,95,"0,95",1,"Land","0,9",1,"0 - 100.000",1,1,"0 - 30",1,1,"ingen","0,9",1,"simpel",1,1]
[null,null,2,"25 - 50",1,1,100,1,1,"By",1,1,"100.000 - 250.000",1,1,"30 - 60",1,1,"moderat",1,1,"moderat",1,1]
[null,null,3,"50 - 100",1,1,110,"1,1",1,"City","1,4",1,"250.000 - 500.000",1,1,"> 60",1,1,"vanskelig","1,4",1,"vanskelig",1,1]
[null,null,4,"> 100",1,1,115,"1,15",1,"Indre city","2,1",1,"500.000 - 1 mio",1,1,null,null,null,"meget vanskelig","2,1",1,"meget vanskelig",1,1]
[null,null,5,null,null,null,null,null,null,null,null,null,"> 1 mio",1,1]
[null,null,6]
[null,null,7]
[null,null,8]
[null,null,9]
[null,null,10]
[null,"Ventil for PE-rør ",1,"0 - 25",1,1,95,"0,95",1,"Land","0,9",1,"0 - 100.000",1,1,"0 - 30",1,1,"ingen","0,9",1,"simpel",1,1]
[null,null,2,"25 - 50",1,1,100,1,1,"By",1,1,"100.000 - 250.000",1,1,"30 - 60",1,1,"moderat",1,1,"moderat",1,1]
[null,null,3,"50 - 100",1,1,110,"1,1",1,"City","1,4",1,"250.000 - 500.000",1,1,"> 60",1,1,"vanskelig","1,4",1,"vanskelig",1,1]
[null,null,4,"> 100",1,1,115,"1,15",1,"Indre city","2,1",1,"500.000 - 1 mio",1,1,null,null,null,"meget vanskelig","2,1",1,"meget vanskelig",1,1]
[null,null,5,null,null,null,null,null,null,null,null,null,"> 1 mio",1,1]
[null,null,6]
[null,null,7]
[null,null,8]
[null,null,9]
[null,null,10]
[null,"Anboring på PE-rør",1,"0 - 25",1,1,95,"0,95",1,"Land","0,9",1,"0 - 100.000",1,1,"0 - 30",1,1,"ingen","0,9",1,"simpel",1,1]
[null,null,2,"25 - 50",1,1,100,1,1,"By",1,1,"100.000 - 250.000",1,1,"30 - 60",1,1,"moderat",1,1,"moderat",1,1]
[null,null,3,"50 - 100",1,1,110,"1,1",1,"City","1,4",1,"250.000 - 500.000",1,1,"> 60",1,1,"vanskelig","1,4",1,"vanskelig",1,1]
[null,null,4,"> 100",1,1,115,"1,15",1,"Indre city","2,1",1,"500.000 - 1 mio",1,1,null,null,null,"meget vanskelig","2,1",1,"meget vanskelig",1,1]
[null,null,5,null,null,null,null,null,null,null,null,null,"> 1 mio",1,1]
[null,null,6]
[null,null,7]
[null,null,8]
[null,null,9]
[null,null,10]
[null,"Stikledninger af PE-rør",1,"0 - 25",1,1,95,"0,95",1,"Land","0,9",1,"0 - 100.000",1,1,"0 - 30",1,1,"ingen","0,9",1,"simpel",1,1]
[null,null,2,"25 - 50",1,1,100,1,1,"By",1,1,"100.000 - 250.000",1,1,"30 - 60",1,1,"moderat",1,1,"moderat",1,1]
[null,null,3,"50 - 100",1,1,110,"1,1",1,"City","1,4",1,"250.000 - 500.000",1,1,"> 60",1,1,"vanskelig","1,4",1,"vanskelig",1,1]
[null,null,4,"> 100",1,1,115,"1,15",1,"Indre city","2,1",1,"500.000 - 1 mio",1,1,null,null,null,"meget vanskelig","2,1",1,"meget vanskelig",1,1]
[null,null,5,null,null,null,null,null,null,null,null,null,"> 1 mio",1,1]
[null,null,6]
[null,null,7]
[null,null,8]
[null,null,9]
[null,null,10]
[null,"Stikledningsventil",1,"0 - 25",1,1,95,"0,95",1,"Land","0,9",1,"0 - 100.000",1,1,"0 - 30",1,1,"ingen","0,9",1,"simpel",1,1]
[null,null,2,"25 - 50",1,1,100,1,1,"By",1,1,"100.000 - 250.000",1,1,"30 - 60",1,1,"moderat",1,1,"moderat",1,1]
[null,null,3,"50 - 100",1,1,110,"1,1",1,"City","1,4",1,"250.000 - 500.000",1,1,"> 60",1,1,"vanskelig","1,4",1,"vanskelig",1,1]
[null,null,4,"> 100",1,1,115,"1,15",1,"Indre city","2,1",1,"500.000 - 1 mio",1,1,null,null,null,"meget vanskelig","2,1",1,"meget vanskelig",1,1]
[null,null,5,null,null,null,null,null,null,null,null,null,"> 1 mio",1,1]
[null,null,6]
[null,null,7]
[null,null,8]
[null,null,9]
[null,null,10]
[null,"Sommerhusventil",1,"0 - 25",1,1,95,"0,95",1,"Land","0,9",1,"0 - 100.000",1,1,"0 - 30",1,1,"ingen","0,9",1,"simpel",1,1]
[null,null,2,"25 - 50",1,1,100,1,1,"By",1,1,"100.000 - 250.000",1,1,"30 - 60",1,1,"moderat",1,1,"moderat",1,1]
[null,null,3,"50 - 100",1,1,110,"1,1",1,"City","1,4",1,"250.000 - 500.000",1,1,"> 60",1,1,"vanskelig","1,4",1,"vanskelig",1,1]
[null,null,4,"> 100",1,1,115,"1,15",1,"Indre city","2,1",1,"500.000 - 1 mio",1,1,null,null,null,"meget vanskelig","2,1",1,"meget vanskelig",1,1]
[null,null,5,null,null,null,null,null,null,null,null,null,"> 1 mio",1,1]
[null,null,6]
[null,null,7]
[null,null,8]
[null,null,9]
[null,null,10]
[null,"PE-målerbrønde",1,"0 - 25",1,1,95,"0,95",1,"Land","0,9",1,"0 - 100.000",1,1,"0 - 30",1,1,"ingen","0,9",1,"simpel",1,1]
[null,null,2,"25 - 50",1,1,100,1,1,"By",1,1,"100.000 - 250.000",1,1,"30 - 60",1,1,"moderat",1,1,"moderat",1,1]
[null,null,3,"50 - 100",1,1,110,"1,1",1,"City","1,4",1,"250.000 - 500.000",1,1,"> 60",1,1,"vanskelig","1,4",1,"vanskelig",1,1]
[null,null,4,"> 100",1,1,115,"1,15",1,"Indre city","2,1",1,"500.000 - 1 mio",1,1,null,null,null,"meget vanskelig","2,1",1,"meget vanskelig",1,1]
[null,null,5,null,null,null,null,null,null,null,null,null,"> 1 mio",1,1]
[null,null,6]
[null,null,7]
[null,null,8]
[null,null,9]
[null,null,10]
[null,"Afregningsmåler",1,"0 - 25",1,1,95,"0,95",1,"Land","0,9",1,"0 - 100.000",1,1,"0 - 30",1,1,"ingen","0,9",1,"simpel",1,1]
[null,null,2,"25 - 50",1,1,100,1,1,"By",1,1,"100.000 - 250.000",1,1,"30 - 60",1,1,"moderat",1,1,"moderat",1,1]
[null,null,3,"50 - 100",1,1,110,"1,1",1,"City","1,4",1,"250.000 - 500.000",1,1,"> 60",1,1,"vanskelig","1,4",1,"vanskelig",1,1]
[null,null,4,"> 100",1,1,115,"1,15",1,"Indre city","2,1",1,"500.000 - 1 mio",1,1,null,null,null,"meget vanskelig","2,1",1,"meget vanskelig",1,1]
[null,null,5,null,null,null,null,null,null,null,null,null,"> 1 mio",1,1]
[null,null,6]
[null,null,7]
[null,null,8]
[null,null,9]
[null,null,10]
[null,"Brandhane",1,"0 - 25",1,1,95,"0,95",1,"Land","0,9",1,"0 - 100.000",1,1,"0 - 30",1,1,"ingen","0,9",1,"simpel",1,1]
[null,null,2,"25 - 50",1,1,100,1,1,"By",1,1,"100.000 - 250.000",1,1,"30 - 60",1,1,"moderat",1,1,"moderat",1,1]
[null,null,3,"50 - 100",1,1,110,"1,1",1,"City","1,4",1,"250.000 - 500.000",1,1,"> 60",1,1,"vanskelig","1,4",1,"vanskelig",1,1]
[null,null,4,"> 100",1,1,115,"1,15",1,"Indre city","2,1",1,"500.000 - 1 mio",1,1,null,null,null,"meget vanskelig","2,1",1,"meget vanskelig",1,1]
[null,null,5,null,null,null,null,null,null,null,null,null,"> 1 mio",1,1]
[null,null,6]
[null,null,7]
[null,null,8]
[null,null,9]
[null,null,10]

{"sheet":"SETUP","index":3,"n_rows":8,"n_cols":1,"rows_kept":8,"cut":false,"hidden":false,"merged":[]}
[]
[]
["KILDE"]
[]
["Prishåndbogen"]
["Polka"]
["Molio"]
["Erfaringstal"]

{"sheet":"Sheet1","index":4,"n_rows":20,"n_cols":10,"rows_kept":20,"cut":false,"hidden":true,"merged":[]}
[]
[]
[]
[]
[null,null,"tPFmatrice"]
[null,null,null,"HF(1 to 3) as tHFmatrix"]
[null,null,null,"RBs() as string"]
[]
[null,null,null,null,"tHFmatrix"]
[null,null,null,null,null,"Hfnavn as string"]
[null,null,null,null,null,"Tgrække() as tTGrække"]
[]
[null,null,null,null,null,null,"tTGrække"]
[null,null,null,null,null,null,null,"RB() as tFaktorGrp"]
[null,null,null,null,null,null,null,"Tgnavn as string"]
[]
[null,null,null,null,null,null,null,null,"tFaktorGrp"]
[null,null,null,null,null,null,null,null,null,"FaktorIndex() as string"]
[null,null,null,null,null,null,null,null,null,"Rbnavn as string"]
[null,null,null,null,null,null,null,null,null,"Tgnavn as string"]

{"sheet":"FAQ_TL","index":5,"n_rows":31,"n_cols":12,"rows_kept":31,"cut":false,"hidden":true,"merged":[]}
["Vejledning til Teknologi-ark"]
[]
[null,"Teknologier og Teknologi-grupper"]
[null,"Teknologier knyttes til en hovedfunktion (HF)og inddeles i teknologi-grupper (TG) "]
[null,"TG'erne opstilles i en rækkefølge, som er fornuftig (der kan evt. tildeles en sorterings-kode, som gør, at der kan sorteres uden at anvende gruppens navn til dette)"]
[null,"Hver teknologi tilskrives en levetid (år) og et teknologi-niveau (STD/BAT/STOA)."]
[null,"Alle teknologier i en TG kan prismæssigt skaleres ens."]
[null,"Hvis der er teknologier i en gruppe, som IKKE kan skaleres som resten, skal der oprettes en ny TG"]
[]
[null,"Prissætning"]
[null,"Alle teknologier tildeles basispriser for anlæg (kr),  drift (kr/år) og vedligehold (kr/år), samt enheden for prisen (f.eks. lbm, stk, o.l.)"]
[null,"De faktiske anlægs- og drifts-priser for en teknologi påvirkes af faktorer, som fastsættes på teknologigruppeniveau. Vedligeholdsprisen påvirkes af samme faktor som anlægsprisen."]
[null,"Kilden til de angivne basis- og driftspriser angives (f.eks. prishåndbog, erfaringspris, e.l.)"]
[null,"Afskrivning beregnes automatisk og angives i output (kr/år) og skal ikke angives (Afskrivningspris = Faktisk anlægspris / Levetid)"]
[]
[null,"Min- og maks-anvendelse"]
[null,"Min- og maks-anvendelse knytter sig til den enkelte teknologi, og er en mulighed for at kunne fravælge en teknologi, som ikke giver mening at anvende pga. en RB."]
[null,"Min- og maks anvendes derfor IKKE til at skalere priser, men udelukkende til at fra-vælge specifikke teknologier ved specifikke RB'er."]
[null,"Min- og maks-intervaller knytter sig til de mulige valg, som for en RB er defineret i RB-arket."]
[null,"Min/max sættes kun, hvis det ønskes at fravælge en teknologi ved bestemte RB'er."]
[null,"Der SKAL vælges BÅDE en min- eller max-værdi - hvis ikke bliver den enlige værdi rød"]
[null,"Min-værdi skal stå højere (eller på samme niveau) som max-værdi  - ellers bliver værdierne røde"]
[null,"Hvis der er angivet en værdi for en min/max, som ikke findes på listen, bliver værdien rød"]
[null,"Hvis en/flere af teknologierne indenfor en RB har fejl i min/max, bliver RB-headeren farvet rød"]
[]
[null,null,"Her bliver værdien rød, fordi der ikke er angivet en max-værdi:",null,null,null,null,null,null,null,null,"Her bliver værdien rød, fordi den ikke findes på listen: "]
[]
[]
[]
[]
[null,null,"Her bliver værdierne røde, fordi min-værdien står længere nede på listen end max-værdien:"]

{"sheet":"LHT-noter","index":6,"n_rows":22,"n_cols":3,"rows_kept":22,"cut":false,"hidden":true,"merged":[]}
[]
[]
[]
["Finn lægger op til at en teknologisk basispris udregnes på baggrund af bl.a. \"makstime\"! \nDenne metode dur ikke, da MAKSTIME er en rammebetingelse - med sine valgmuligheder (0 - 30, 30 - 60, 60 - 90 m3/time) med hver sine faktorer."]
[]
[]
[]
[]
[]
[]
[]
["Hver teknologi tilknyttes en teknologi-gruppe, som igen tilknyttes en hovedfunktion"]
["Hver teknologi tildeles en basis-pris, som udgør en \"typisk\" anlægs-pris for teknologien.\n     Er det f.eks. et filter, kan basisprisen derfor være prisen ved/omkring en minimums-indvinding (30m3/t),\n     mens prisen for en større indvinding reguleres vha. faktorerne vedr. TIMEMAKS og/eller DØGNMAKS"]
["Prisen for en teknologi fastsættes ved valg af forhold (parametre) vedrørende defienrede rammebetingelser. \n     Parametrene tilknyttes hver især en faktor, som anvendes til at påvirke teknologiens pris (ud fra basisprisen)."]
["Hver teknologi tilknyttes et teknologi-niveau (STD/BAT/STOA), som ikke påvirker prisen, men kun er en egenskab for teknologien"]
[]
["For hver rammebetingelse opstilles 1-10 (måske kun 5) forskellige valg (tilknyttet hver sin faktor) for hver teknologi-gruppe. \n     Valgene vil igennem deres tilknyttede faktor påvirke teknologiens anlægspris ved det givne (valgte) forhold vedr. rammebetingelsen.\n     Hvis det vurderes, at en teknologi-gruppe ikke påvirkes af en bestemt rammebetingelse, angives der kun 1 valgmulighed (Uden Betydning), som tildeles en faktor=1\n     Hvis det vurderes, at rammebetingelsen har indflydelse på prisen for teknologien, defineres der et antal mulige valg - hver med sin faktor. \n     Der angives altid valget \"Uden Betydning\" med faktor=1, således at det kan vælges at holde rammebetingelsen udenfor indflydelse."]
[]
[]
["Det foreslås at levere data som indikeret i OUTPUT-ark"]
["At levere den fulde matrice af alle valg indenfor alle rammebetingelser for alle teknologier vil ikke være en mulighed.\n     Med 15 rammebetingelser, hver med 5 valg (parametre) vil give output på 5^15 = flere end 30 mia linier pr teknologi"]
[null,null,{"$f":"5^15","v":30517578125}]

{"sheet":"OUTPUT-OLD","index":7,"n_rows":27,"n_cols":10,"rows_kept":27,"cut":false,"hidden":true,"merged":[]}
["Hovedfunktion","Teknologi-gruppe","Teknologi","TekNiveau","RB_Nr","RB_tekst","RB_valg","ANL_pris","DRI_pris","VLH_pris"]
["Kildeplads","Pumpe","SP4","STD",1,"Årlig produktion","Uden Betydning",20000,5000,2000]
["Kildeplads","Pumpe","SP4","STD",1,"Årlig produktion","0 - 10",20000,5000,2000]
["Kildeplads","Pumpe","SP4","STD",1,"Årlig produktion","10 - 25",{"$f":"20000*1.1","v":22000},5000,2000]
["Kildeplads","Pumpe","SP4","STD",1,"Årlig produktion","25 - 50",{"$f":"20000*1.2","v":24000},{"$f":"5000*1.1","v":5500},{"$f":"2000*1.1","v":2200}]
["Kildeplads","Pumpe","SP4","STD",1,"Årlig produktion","50 - 250",{"$f":"20000*1.3","v":26000},{"$f":"5000*1.2","v":6000},{"$f":"2000*1.2","v":2400}]
["Kildeplads","Pumpe","SP4","STD",1,"Årlig produktion","250 - 1000",{"$f":"20000*1.4","v":28000},{"$f":"5000*1.2","v":6000},{"$f":"2000*1.2","v":2400}]
["Kildeplads","Pumpe","SP4","STD",1,"Årlig produktion",">1000",{"$f":"20000*1.6","v":32000},{"$f":"5000*1.3","v":6500},2400]
["Kildeplads","Pumpe","SP4","STD",2,"Maksdøgn","Uden Betydning"]
["Kildeplads","Pumpe","SP4","STD",2,"Maksdøgn","valg 1"]
["Kildeplads","Pumpe","SP4","STD",2,"Maksdøgn","valg 2"]
["Kildeplads","Pumpe","SP4","STD",2,"Maksdøgn","valg 2"]
["Kildeplads","Pumpe","SP4","STD",3,"Makstime","Uden Betydning"]
["Kildeplads","Pumpe","SP4","STD",3,"Makstime","valg 1"]
["Kildeplads","Pumpe","SP4","STD",3,"Makstime","valg 2"]
["Kildeplads","Pumpe","SP4","STD",3,"Makstime","valg 3"]
["Kildeplads","Pumpe","SP4","STD",3,"Makstime","valg 4"]
[null,"- - - "]
["Kildeplads","Pumpe","SP10","STOA"]
[]
[]
[]
[]
[]
[]
[]
[null,null,null,null,null,null,{"$f":"1100000/5^5","v":352},{"$f":"18*5^5","v":56250}]

{"sheet":"OUTPUT","index":8,"n_rows":74,"n_cols":22,"rows_kept":74,"cut":false,"hidden":true,"merged":[]}
[1,2,3,4,5,6,7,8,9,10,11,12,13,14,15,16,17,18]
["Hovedfunktion","Teknologi-gruppe","Teknologi","TekNiveau","Levetid","BASIS_pris","KILDE_anlæg","Kilde_levTid","ANLÆG_pris","REL","BEMÆRK","AFSKR_pris","Driftspris","VLH_pris","Enhed","RB1_Makstime (m3)","RB2_Geografisk placering","RB3_Lokalitet (land/by)",null,"RB1","RB2","RB3"]
["Kildeplads","Boringsudførelse","Tørboring_Ø250mm_0-30m","STD",null,1257,null,null,{"$f":"IFERROR(T3*U3*V3*F3,\"IR\")","v":"IR"},null,null,null,null,null,"lbm","0 - 25","København","Land",null,1,{"$f":"VLOOKUP(Q3,PrisFaktorer!$G$11:$H$14,2,FALSE)","v":{"$error":"#N/A"}},"IR"]
["Kildeplads","Boringsudførelse","Tørboring_Ø250mm_0-30m","STD",null,1257,null,null,{"$f":"IFERROR(T4*U4*V4*F4,\"IR\")","v":"IR"},null,null,null,null,null,"lbm","0 - 25","København","By",null,1,{"$f":"VLOOKUP(Q4,PrisFaktorer!$G$11:$H$14,2,FALSE)","v":{"$error":"#N/A"}},1.2]
["Kildeplads","Boringsudførelse","Tørboring_Ø250mm_0-30m","STD",null,1257,null,null,"IR",null,null,null,null,null,"lbm","0 - 25","København","Centrum",null,1,{"$f":"VLOOKUP(Q5,PrisFaktorer!$G$11:$H$14,2,FALSE)","v":{"$error":"#N/A"}},1.5]
["Kildeplads","Boringsudførelse","Tørboring_Ø250mm_0-30m","STD",null,1257,null,null,"IR",null,null,null,null,null,"lbm","0 - 25","Sjælland","Land",null,1,{"$f":"VLOOKUP(Q6,PrisFaktorer!$G$11:$H$14,2,FALSE)","v":{"$error":"#N/A"}},1]
["Kildeplads","Boringsudførelse","Tørboring_Ø250mm_0-30m","STD",null,1257,null,null,"IR",null,null,null,null,null,"lbm","0 - 25","Sjælland","By",null,1,{"$f":"VLOOKUP(Q7,PrisFaktorer!$G$11:$H$14,2,FALSE)","v":{"$error":"#N/A"}},1.2]
["Kildeplads","Boringsudførelse","Tørboring_Ø250mm_0-30m","STD",null,1257,null,null,"IR",null,null,null,null,null,"lbm","0 - 25","Sjælland","Centrum",null,1,{"$f":"VLOOKUP(Q8,PrisFaktorer!$G$11:$H$14,2,FALSE)","v":{"$error":"#N/A"}},1.5]
["Kildeplads","Boringsudførelse","Tørboring_Ø250mm_0-30m","STD",null,1257,null,null,"IR",null,null,null,null,null,"lbm","0 - 25","Øerne","Land",null,1,{"$f":"VLOOKUP(Q9,PrisFaktorer!$G$11:$H$14,2,FALSE)","v":{"$error":"#N/A"}},1]
["Kildeplads","Boringsudførelse","Tørboring_Ø250mm_0-30m","STD",null,1257,null,null,"IR",null,null,null,null,null,"lbm","0 - 25","Øerne","By",null,1,{"$f":"VLOOKUP(Q10,PrisFaktorer!$G$11:$H$14,2,FALSE)","v":{"$error":"#N/A"}},1.2]
["Kildeplads","Boringsudførelse","Tørboring_Ø250mm_0-30m","STD",null,1257,null,null,"IR",null,null,null,null,null,"lbm","0 - 25","Øerne","Centrum",null,1,{"$f":"VLOOKUP(Q11,PrisFaktorer!$G$11:$H$14,2,FALSE)","v":{"$error":"#N/A"}},1.5]
["Kildeplads","Boringsudførelse","Tørboring_Ø250mm_0-30m","STD",null,1257,null,null,"IR",null,null,null,null,null,"lbm","0 - 25","Jylland","Land",null,1,{"$f":"VLOOKUP(Q12,PrisFaktorer!$G$11:$H$14,2,FALSE)","v":{"$error":"#N/A"}},1]
["Kildeplads","Boringsudførelse","Tørboring_Ø250mm_0-30m","STD",null,1257,null,null,"IR",null,null,null,null,null,"lbm","0 - 25","Jylland","By",null,1,{"$f":"VLOOKUP(Q13,PrisFaktorer!$G$11:$H$14,2,FALSE)","v":{"$error":"#N/A"}},1.2]
["Kildeplads","Boringsudførelse","Tørboring_Ø250mm_0-30m","STD",null,1257,null,null,"IR",null,null,null,null,null,"lbm","0 - 25","Jylland","Centrum",null,1,{"$f":"VLOOKUP(Q14,PrisFaktorer!$G$11:$H$14,2,FALSE)","v":{"$error":"#N/A"}},1.5]
["Kildeplads","Boringsudførelse","Tørboring_Ø250mm_0-30m","STD",null,1257,null,null,"IR",null,null,null,null,null,"lbm","25 - 50","København","Land",null,"IR",{"$f":"VLOOKUP(Q15,PrisFaktorer!$G$11:$H$14,2,FALSE)","v":{"$error":"#N/A"}},"IR"]
["Kildeplads","Boringsudførelse","Tørboring_Ø250mm_0-30m","STD",null,1257,null,null,"IR",null,null,null,null,null,"lbm","25 - 50","København","By",null,"IR",{"$f":"VLOOKUP(Q16,PrisFaktorer!$G$11:$H$14,2,FALSE)","v":{"$error":"#N/A"}},1.2]
["Kildeplads","Boringsudførelse","Tørboring_Ø250mm_0-30m","STD",null,1257,null,null,"IR",null,null,null,null,null,"lbm","25 - 50","København","Centrum",null,"IR",{"$f":"VLOOKUP(Q17,PrisFaktorer!$G$11:$H$14,2,FALSE)","v":{"$error":"#N/A"}},1.5]
["Kildeplads","Boringsudførelse","Tørboring_Ø250mm_0-30m","STD",null,1257,null,null,"IR",null,null,null,null,null,"lbm","25 - 50","Sjælland","Land",null,"IR",{"$f":"VLOOKUP(Q18,PrisFaktorer!$G$11:$H$14,2,FALSE)","v":{"$error":"#N/A"}},1]
["Kildeplads","Boringsudførelse","Tørboring_Ø250mm_0-30m","STD",null,1257,null,null,"IR",null,null,null,null,null,"lbm","25 - 50","Sjælland","By",null,"IR",{"$f":"VLOOKUP(Q19,PrisFaktorer!$G$11:$H$14,2,FALSE)","v":{"$error":"#N/A"}},1.2]
["Kildeplads","Boringsudførelse","Tørboring_Ø250mm_0-30m","STD",null,1257,null,null,"IR",null,null,null,null,null,"lbm","25 - 50","Sjælland","Centrum",null,"IR",{"$f":"VLOOKUP(Q20,PrisFaktorer!$G$11:$H$14,2,FALSE)","v":{"$error":"#N/A"}},1.5]
["Kildeplads","Boringsudførelse","Tørboring_Ø250mm_0-30m","STD",null,1257,null,null,"IR",null,null,null,null,null,"lbm","25 - 50","Øerne","Land",null,"IR",{"$f":"VLOOKUP(Q21,PrisFaktorer!$G$11:$H$14,2,FALSE)","v":{"$error":"#N/A"}},1]
["Kildeplads","Boringsudførelse","Tørboring_Ø250mm_0-30m","STD",null,1257,null,null,"IR",null,null,null,null,null,"lbm","25 - 50","Øerne","By",null,"IR",{"$f":"VLOOKUP(Q22,PrisFaktorer!$G$11:$H$14,2,FALSE)","v":{"$error":"#N/A"}},1.2]
["Kildeplads","Boringsudførelse","Tørboring_Ø250mm_0-30m","STD",null,1257,null,null,"IR",null,null,null,null,null,"lbm","25 - 50","Øerne","Centrum",null,"IR",{"$f":"VLOOKUP(Q23,PrisFaktorer!$G$11:$H$14,2,FALSE)","v":{"$error":"#N/A"}},1.5]
["Kildeplads","Boringsudførelse","Tørboring_Ø250mm_0-30m","STD",null,1257,null,null,"IR",null,null,null,null,null,"lbm","25 - 50","Jylland","Land",null,"IR",{"$f":"VLOOKUP(Q24,PrisFaktorer!$G$11:$H$14,2,FALSE)","v":{"$error":"#N/A"}},1]
["Kildeplads","Boringsudførelse","Tørboring_Ø250mm_0-30m","STD",null,1257,null,null,"IR",null,null,null,null,null,"lbm","25 - 50","Jylland","By",null,"IR",{"$f":"VLOOKUP(Q25,PrisFaktorer!$G$11:$H$14,2,FALSE)","v":{"$error":"#N/A"}},1.2]
["Kildeplads","Boringsudførelse","Tørboring_Ø250mm_0-30m","STD",null,1257,null,null,"IR",null,null,null,null,null,"lbm","25 - 50","Jylland","Centrum",null,"IR",{"$f":"VLOOKUP(Q26,PrisFaktorer!$G$11:$H$14,2,FALSE)","v":{"$error":"#N/A"}},1.5]
["Kildeplads","Boringsudførelse","Tørboring_Ø250mm_0-30m","STD",null,1257,null,null,"IR",null,null,null,null,null,"lbm","> 50","København","Land",null,"IR",{"$f":"VLOOKUP(Q27,PrisFaktorer!$G$11:$H$14,2,FALSE)","v":{"$error":"#N/A"}},"IR"]
["Kildeplads","Boringsudførelse","Tørboring_Ø250mm_0-30m","STD",null,1257,null,null,"IR",null,null,null,null,null,"lbm","> 50","København","By",null,"IR",{"$f":"VLOOKUP(Q28,PrisFaktorer!$G$11:$H$14,2,FALSE)","v":{"$error":"#N/A"}},1.2]
["Kildeplads","Boringsudførelse","Tørboring_Ø250mm_0-30m","STD",null,1257,null,null,"IR",null,null,null,null,null,"lbm","> 50","København","Centrum",null,"IR",{"$f":"VLOOKUP(Q29,PrisFaktorer!$G$11:$H$14,2,FALSE)","v":{"$error":"#N/A"}},1.5]
["Kildeplads","Boringsudførelse","Tørboring_Ø250mm_0-30m","STD",null,1257,null,null,"IR",null,null,null,null,null,"lbm","> 50","Sjælland","Land",null,"IR",{"$f":"VLOOKUP(Q30,PrisFaktorer!$G$11:$H$14,2,FALSE)","v":{"$error":"#N/A"}},1]
["Kildeplads","Boringsudførelse","Tørboring_Ø250mm_0-30m","STD",null,1257,null,null,"IR",null,null,null,null,null,"lbm","> 50","Sjælland","By",null,"IR",{"$f":"VLOOKUP(Q31,PrisFaktorer!$G$11:$H$14,2,FALSE)","v":{"$error":"#N/A"}},1.2]
["Kildeplads","Boringsudførelse","Tørboring_Ø250mm_0-30m","STD",null,1257,null,null,"IR",null,null,null,null,null,"lbm","> 50","Sjælland","Centrum",null,"IR",{"$f":"VLOOKUP(Q32,PrisFaktorer!$G$11:$H$14,2,FALSE)","v":{"$error":"#N/A"}},1.5]
["Kildeplads","Boringsudførelse","Tørboring_Ø250mm_0-30m","STD",null,1257,null,null,"IR",null,null,null,null,null,"lbm","> 50","Øerne","Land",null,"IR",{"$f":"VLOOKUP(Q33,PrisFaktorer!$G$11:$H$14,2,FALSE)","v":{"$error":"#N/A"}},1]
["Kildeplads","Boringsudførelse","Tørboring_Ø250mm_0-30m","STD",null,1257,null,null,"IR",null,null,null,null,null,"lbm","> 50","Øerne","By",null,"IR",{"$f":"VLOOKUP(Q34,PrisFaktorer!$G$11:$H$14,2,FALSE)","v":{"$error":"#N/A"}},1.2]
["Kildeplads","Boringsudførelse","Tørboring_Ø250mm_0-30m","STD",null,1257,null,null,"IR",null,null,null,null,null,"lbm","> 50","Øerne","Centrum",null,"IR",{"$f":"VLOOKUP(Q35,PrisFaktorer!$G$11:$H$14,2,FALSE)","v":{"$error":"#N/A"}},1.5]
["Kildeplads","Boringsudførelse","Tørboring_Ø250mm_0-30m","STD",null,1257,null,null,"IR",null,null,null,null,null,"lbm","> 50","Jylland","Land",null,"IR",{"$f":"VLOOKUP(Q36,PrisFaktorer!$G$11:$H$14,2,FALSE)","v":{"$error":"#N/A"}},1]
["Kildeplads","Boringsudførelse","Tørboring_Ø250mm_0-30m","STD",null,1257,null,null,"IR",null,null,null,null,null,"lbm","> 50","Jylland","By",null,"IR",{"$f":"VLOOKUP(Q37,PrisFaktorer!$G$11:$H$14,2,FALSE)","v":{"$error":"#N/A"}},1.2]
["Kildeplads","Boringsudførelse","Tørboring_Ø250mm_0-30m","STD",null,1257,null,null,"IR",null,null,null,null,null,"lbm","> 50","Jylland","Centrum",null,"IR",{"$f":"VLOOKUP(Q38,PrisFaktorer!$G$11:$H$14,2,FALSE)","v":{"$error":"#N/A"}},1.5]
["Kildeplads","Pumpe","60 m3/t","STD",null,85000,null,null,"IR",null,null,null,null,null,"stk","0 - 25","København","Land",null,"IR",1,"IR"]
["Kildeplads","Pumpe","60 m3/t","STD",null,85000,null,null,"IR",null,null,null,null,null,"stk","0 - 25","København","By",null,"IR",1,1]
["Kildeplads","Pumpe","60 m3/t","STD",null,85000,null,null,"IR",null,null,null,null,null,"stk","0 - 25","København","Centrum",null,"IR",1,1]
["Kildeplads","Pumpe","60 m3/t","STD",null,85000,null,null,"IR",null,null,null,null,null,"stk","0 - 25","Sjælland","Land",null,"IR",1,1]
["Kildeplads","Pumpe","60 m3/t","STD",null,85000,null,null,"IR",null,null,null,null,null,"stk","0 - 25","Sjælland","By",null,"IR",1,1]
["Kildeplads","Pumpe","60 m3/t","STD",null,85000,null,null,"IR",null,null,null,null,null,"stk","0 - 25","Sjælland","Centrum",null,"IR",1,1]
["Kildeplads","Pumpe","60 m3/t","STD",null,85000,null,null,"IR",null,null,null,null,null,"stk","0 - 25","Øerne","Land",null,"IR",1,1]
["Kildeplads","Pumpe","60 m3/t","STD",null,85000,null,null,"IR",null,null,null,null,null,"stk","0 - 25","Øerne","By",null,"IR",1,1]
["Kildeplads","Pumpe","60 m3/t","STD",null,85000,null,null,"IR",null,null,null,null,null,"stk","0 - 25","Øerne","Centrum",null,"IR",1,1]
["Kildeplads","Pumpe","60 m3/t","STD",null,85000,null,null,"IR",null,null,null,null,null,"stk","0 - 25","Jylland","Land",null,"IR",1,1]
["Kildeplads","Pumpe","60 m3/t","STD",null,85000,null,null,"IR",null,null,null,null,null,"stk","0 - 25","Jylland","By",null,"IR",1,1]
["Kildeplads","Pumpe","60 m3/t","STD",null,85000,null,null,"IR",null,null,null,null,null,"stk","0 - 25","Jylland","Centrum",null,"IR",1,1]
["Kildeplads","Pumpe","60 m3/t","STD",null,85000,null,null,"IR",null,null,null,null,null,"stk","25 - 50","København","Land",null,1,1,"IR"]
["Kildeplads","Pumpe","60 m3/t","STD",null,85000,null,null,85000,null,null,null,null,null,"stk","25 - 50","København","By",null,1,1,1]
["Kildeplads","Pumpe","60 m3/t","STD",null,85000,null,null,85000,null,null,null,null,null,"stk","25 - 50","København","Centrum",null,1,1,1]
["Kildeplads","Pumpe","60 m3/t","STD",null,85000,null,null,85000,null,null,null,null,null,"stk","25 - 50","Sjælland","Land",null,1,1,1]
["Kildeplads","Pumpe","60 m3/t","STD",null,85000,null,null,85000,null,null,null,null,null,"stk","25 - 50","Sjælland","By",null,1,1,1]
["Kildeplads","Pumpe","60 m3/t","STD",null,85000,null,null,85000,null,null,null,null,null,"stk","25 - 50","Sjælland","Centrum",null,1,1,1]
["Kildeplads","Pumpe","60 m3/t","STD",null,85000,null,null,85000,null,null,null,null,null,"stk","25 - 50","Øerne","Land",null,1,1,1]
["Kildeplads","Pumpe","60 m3/t","STD",null,85000,null,null,85000,null,null,null,null,null,"stk","25 - 50","Øerne","By",null,1,1,1]
["Kildeplads","Pumpe","60 m3/t","STD",null,85000,null,null,85000,null,null,null,null,null,"stk","25 - 50","Øerne","Centrum",null,1,1,1]
["Kildeplads","Pumpe","60 m3/t","STD",null,85000,null,null,85000,null,null,null,null,null,"stk","25 - 50","Jylland","Land",null,1,1,1]
["Kildeplads","Pumpe","60 m3/t","STD",null,85000,null,null,85000,null,null,null,null,null,"stk","25 - 50","Jylland","By",null,1,1,1]
["Kildeplads","Pumpe","60 m3/t","STD",null,85000,null,null,85000,null,null,null,null,null,"stk","25 - 50","Jylland","Centrum",null,1,1,1]
["Kildeplads","Pumpe","60 m3/t","STD",null,85000,null,null,"IR",null,null,null,null,null,"stk","> 50","København","Land",null,1,1,"IR"]
["Kildeplads","Pumpe","60 m3/t","STD",null,85000,null,null,85000,null,null,null,null,null,"stk","> 50","København","By",null,1,1,1]
["Kildeplads","Pumpe","60 m3/t","STD",null,85000,null,null,85000,null,null,null,null,null,"stk","> 50","København","Centrum",null,1,1,1]
["Kildeplads","Pumpe","60 m3/t","STD",null,85000,null,null,85000,null,null,null,null,null,"stk","> 50","Sjælland","Land",null,1,1,1]
["Kildeplads","Pumpe","60 m3/t","STD",null,85000,null,null,85000,null,null,null,null,null,"stk","> 50","Sjælland","By",null,1,1,1]
["Kildeplads","Pumpe","60 m3/t","STD",null,85000,null,null,{"$f":"IFERROR(T68*U68*V68*F68,\"IR\")","v":85000},null,null,null,null,null,"stk","> 50","Sjælland","Centrum",null,1,1,1]
["Kildeplads","Pumpe","60 m3/t","STD",null,85000,null,null,85000,null,null,null,null,null,"stk","> 50","Øerne","Land",null,1,1,1]
["Kildeplads","Pumpe","60 m3/t","STD",null,85000,null,null,85000,null,null,null,null,null,"stk","> 50","Øerne","By",null,1,1,1]
["Kildeplads","Pumpe","60 m3/t","STD",null,85000,null,null,85000,null,null,null,null,null,"stk","> 50","Øerne","Centrum",null,1,1,1]
["Kildeplads","Pumpe","60 m3/t","STD",null,85000,null,null,85000,null,null,null,null,null,"stk","> 50","Jylland","Land",null,1,1,1]
["Kildeplads","Pumpe","60 m3/t","STD",null,85000,null,null,85000,null,null,null,null,null,"stk","> 50","Jylland","By",null,1,1,1]
["Kildeplads","Pumpe","60 m3/t","STD",null,85000,null,null,85000,null,null,null,null,null,"stk","> 50","Jylland","Centrum",null,1,1,1]